Cogmind - Beta 15 @@@ ROGUE MODE // 2025.08.07 @ 05:18:32 Player: Naughtyusername Result: Destroyed by Striker with Compact Linear Accelerator Performance ------------- Evolutions (8) 4000 Regions Visited (24) 4800 Robots Destroyed (271) 1355 Value Destroyed (13543) 13543 Prototype IDs (150) 3000 Alien Tech Used (9) 1800 Bonus (15723) 15723 TOTAL SCORE: 44221 Bonus ------- High Alert Combat Kills 6750 Follower Combat Kills 1679 Registered with UFD 300 Met Optimus in HQ 500 Met Zhirov 300 Found Hidden Lab 3000 Used Core Reset Matrix 3000 Pursued by Intercept 1000 Met Optimus at Protoforge 1000 Friendly Fire -1806 Cogmind --------- Core Integrity 0/1450 Matter 290/300 Energy 178/190 System Corruption 25% Temperature Cool (2) Movement Flying (42) Location -2/Protoforge Parts ------- > --- POWER (2) -------- Light Quantum Reactor > --- PROPULSION (8) --- Impulse Thruster Array Impulse Thruster Array > --- UTILITY (12) ----- 0bPrime Scrap Suit Experimental Optical Array Experimental Targeting Computer Experimental Targeting Computer Experimental Core Analyzer Experimental Core Analyzer Centrium Light Armor Plating > --- WEAPON (2) ------- (None) > --- INVENTORY (5) ---- Medium Storage Unit Linked Autogun Peak State ------------ > --- POWER ------------ Micro Antimatter Reactor Light Quantum Reactor > --- PROPULSION ------- Impulse Thruster Array Experimental Surge Thruster Experimental Surge Thruster Experimental Surge Thruster Experimental Surge Thruster Experimental Surge Thruster Experimental Surge Thruster > --- UTILITY ---------- 0bPrime Scrap Suit Medium Storage Unit Experimental Optical Array Experimental Targeting Computer Experimental Targeting Computer Experimental Targeting Computer Experimental Targeting Computer Improved Target Analyzer Experimental Core Analyzer Experimental Core Analyzer Experimental Reaction Control System > --- WEAPON ----------- Helical Railgun Helical Railgun > --- INVENTORY -------- Light Deuterium Engine Linked Autogun Linked Autogun [Rating: 198] Favorites ----------- Power Light Angular Momentum Engine Engine Light Angular Momentum Engine Power Core Light Nuclear Core Reactor Light Antimatter Reactor Propulsion Cooled VTOL Module Treads Improved Treads Leg Aluminum Leg Wheel Armored Huge Wheel Flight Unit Cooled VTOL Module Utility Hacking Suite Device Improved Sensor Array Storage Huge Storage Unit Processor Advanced Signal Interpreter Hackware Hacking Suite Protection Hardened Medium Armor Plating Artifact Phase Redirector Weapon Companion Sword Energy Gun Improved Medium Laser Energy Cannon Warp Cannon Ballistic Gun Improved Assault Rifle Ballistic Cannon Overtuned Bore Cannon Launcher Rocket Launcher Special Weapon Junk Cannon Impact Weapon Powered Hammer Slashing Weapon Companion Sword Special Melee Weapon Advanced Datajack Build | -11 -10 -10 -10 -9 -8 -7 -7 -7 -7 -5 -5 -5 -5 -5 -5 -4 -4 -4 -3 -3 -3 -2 -2 -2 ------- Run | Yrd Mat Min Exi Min Mat Fac Sto Rec Scr Fac Was Fac Upp Upp Zhi Pro Fac Ext Res Arm Lab Res Qua Frg Slots Evolved 16 | . . . . . 4 2 . . . 4 . . . . . . 2 . 2 . . 2 . . Power 1 | . . . . . . . . . . 1 . . . . . . . . . . . . . . Propulsion 6 | . . . . . 2 1 . . . 1 . . . . . . 1 . 1 . . . . . Utility 9 | . . . . . 2 1 . . . 2 . . . . . . 1 . 1 . . 2 . . Weapon . | . . . . . . . . . . . . . . . . . . . . . . . . . Parts Attached 292 | 1 15 5 . 4 25 23 19 . 5 18 2 15 . . 5 1 9 5 1 4 . 1 4 130 Power 45 | . 2 . . 1 3 4 3 . . 1 1 3 . . 2 . 1 1 . . . . 1 22 Engine 14 | . 2 . . 1 1 1 2 . . . . 2 . . 1 . 1 . . . . . . 3 Core 12 | . . . . . 2 3 1 . . 1 1 1 . . . . . . . . . . 1 2 Reactor 19 | . . . . . . . . . . . . . . . 1 . . 1 . . . . . 17 Propulsion 63 | . 5 . . 2 8 4 3 . . 9 . 2 . . . . 1 1 . 1 . . . 27 Treads 15 | . 1 . . 2 8 3 . . . . . . . . . . . . . . . . . 1 Leg 1 | . . . . . . 1 . . . . . . . . . . . . . . . . . . Wheel 6 | . 4 . . . . . 2 . . . . . . . . . . . . . . . . . Hover . | . . . . . . . . . . . . . . . . . . . . . . . . . Flight 41 | . . . . . . . 1 . . 9 . 2 . . . . 1 1 . 1 . . . 26 Utility 120 | 1 3 1 . . 5 6 7 . 2 8 1 9 . . 3 . 6 1 1 3 . 1 2 60 Device 36 | 1 1 . . . 1 . 1 . 1 1 . 5 . . . . 2 1 . 1 . . 1 20 Storage 8 | . 2 . . . . . . . . 1 . 1 . . 1 . . . . . . . . 3 Processor 39 | . . 1 . . . 2 . . 1 2 . . . . . . . . 1 2 . . . 30 Hackware 13 | . . . . . . 2 . . . 3 1 2 . . 1 . 3 . . . . 1 . . Protection 23 | . . . . . 4 2 6 . . 1 . 1 . . 1 . 1 . . . . . . 7 Artifact 1 | . . . . . . . . . . . . . . . . . . . . . . . 1 . Weapon 64 | . 5 4 . 1 9 9 6 . 3 . . 1 . . . 1 1 2 . . . . 1 21 Energy Gun 10 | . 4 . . . 2 2 2 . . . . . . . . . . . . . . . . . Energy Cannon 9 | . 1 . . . . 1 1 . 1 . . 1 . . . 1 1 . . . . . 1 1 Ballistic Gun 27 | . . 2 . 1 3 6 . . . . . . . . . . . 1 . . . . . 14 Ballistic Cannon 5 | . . . . . 1 . 1 . . . . . . . . . . . . . . . . 3 Launcher 6 | . . 2 . . 1 . 2 . . . . . . . . . . . . . . . . 1 Special Weapon 1 | . . . . . . . . . 1 . . . . . . . . . . . . . . . Impact Weapon 2 | . . . . . 2 . . . . . . . . . . . . . . . . . . . Slashing Weapon 3 | . . . . . . . . . 1 . . . . . . . . . . . . . . 2 Piercing Weapon . | . . . . . . . . . . . . . . . . . . . . . . . . . Special Melee Weapon 1 | . . . . . . . . . . . . . . . . . . 1 . . . . . . Unidentified Prototypes 48 | . 3 . . . . 1 7 . 2 1 . 1 . . 4 . . . . 2 1 1 1 24 Corrupted Parts 1 | . . . . . . . . . . . . . . . . . . . . . . . . 1 System Corruption 5 | . . . . . . . . . . . . . . . . . . . . . . . . 5 Parts Lost 73 | . 1 . . 4 4 2 5 . . 3 . 4 . . . 2 . . . . . . 1 47 Power 19 | . . . . 1 . . 2 . . 2 . 2 . . . 1 . . . . . . 1 10 Propulsion 18 | . 1 . . 1 2 2 . . . . . . . . . 1 . . . . . . . 11 Utility 29 | . . . . 1 1 . 2 . . 1 . 2 . . . . . . . . . . . 22 Weapon 7 | . . . . 1 1 . 1 . . . . . . . . . . . . . . . . 4 Highest Loss Streak 8 | . 1 . . 2 1 1 3 . . 3 . 2 . . . 2 . . . . . . 1 8 To Critical Strikes 1 | . . . . . . . . . . . . . . . . . . . . . . . . 1 Average Backups 16 | 6 17 24 25 23 24 24 24 25 22 5 5 6 7 9 10 9 9 10 9 9 9 8 8 3 Power 1 | 1 1 1 1 . . 1 1 2 1 . . . . . 1 1 . 1 1 1 1 1 1 . Propulsion 4 | 4 7 7 7 6 7 5 7 10 8 . . . 1 1 1 . . . . . . . . . Utility 4 | . 2 3 4 3 3 7 7 7 8 3 2 2 4 4 4 4 4 5 4 4 5 4 4 1 Weapon 5 | 1 6 13 13 13 11 10 6 5 4 2 2 1 2 2 2 2 2 1 1 1 2 2 1 1 Tool/Special . | . . . . . . . . . . . . . . . . . . . . . . . . . Unused Backups 71 | . 16 6 . . 12 12 4 1 4 2 . 2 . . 1 . . 1 1 . . . 2 7 Power 5 | . 4 . . . . 1 . . . . . . . . . . . . . . . . . . Propulsion 19 | . 3 1 . . 5 4 2 . 1 . . 1 . . . . . . . . . . . 2 Utility 21 | . 2 . . . . 4 1 . 3 2 . 1 . . 1 . . 1 1 . . . 2 3 Weapon 24 | . 7 5 . . 7 3 1 . . . . . . . . . . . . . . . . 1 Tool/Special 2 | . . . . . . . . 1 . . . . . . . . . . . . . . . 1 Average Slot Usage (%) 88 | . 100 100 100 96 96 99 84 83 68 90 88 89 88 88 87 83 88 89 84 76 78 82 85 78 Engine 5 | . 14 14 14 12 3 2 3 7 6 2 7 5 11 11 10 5 9 9 4 4 4 4 3 . Core 1 | . . . . . 5 4 3 . . 6 3 5 . . . . . . . . . . . . Reactor 1 | . . . . . . . . . . . . . . . . . . . 4 4 4 4 4 6 Treads 10 | . . . . 5 35 37 7 7 6 . . . . . . . . . . . . . . . Wheel 6 | . 19 28 28 21 . . 14 15 14 . . . . . . . . . . . . . . . Flight 10 | . . . . . . . . . . 32 29 29 29 29 29 29 30 29 23 19 22 20 20 19 Device 8 | . 14 14 . 12 7 5 2 6 7 9 5 8 5 9 9 5 9 5 9 8 8 16 15 10 Storage 7 | . 14 14 14 14 9 7 7 7 6 . . 2 5 5 5 5 5 5 4 4 4 4 4 3 Processor 9 | . . . 14 . . 10 7 7 13 10 11 5 5 5 5 5 5 5 8 9 9 8 8 27 Hackware 7 | . . . . . . 10 8 7 7 15 17 18 17 17 17 17 19 21 19 19 18 19 20 . Protection 3 | . . . . . 16 2 10 7 1 1 5 2 5 1 . 5 . 4 . . . . . . Energy Gun 3 | . 24 10 . . 7 1 . . . . . . . . . . . . . . . . . . Ballistic Gun 5 | . 3 6 14 17 9 10 11 14 . . . . . . . . . . . . . . . 3 Launcher 1 | . . 11 14 9 . . . . . . . . . . . . . . . . . . . . Slashing Weapon 1 | . . . . . . . . . 1 5 5 5 5 5 5 5 5 5 4 4 4 4 3 2 Peak Build Rating 198 | 7 17 18 17 19 32 49 56 55 59 79 73 88 83 84 84 85 105 113 119 124 131 147 166 198 Average Rating 72 | 6 12 16 17 17 28 45 51 54 46 70 70 80 78 78 80 79 98 100 118 108 124 146 156 174 On Entrance 69 | 6 7 17 17 17 15 32 46 55 47 59 67 73 79 80 79 82 79 99 113 111 123 131 147 157 Naked Turns . | . . . . . . . . . . . . . . . . . . . . . . . . . Heaviest Build 115 | 12 96 96 95 96 105 108 115 108 104 23 15 30 30 26 33 33 37 48 41 40 41 43 55 70 Greatest Support 116 | 20 32 20 20 46 89 116 91 56 56 39 31 41 41 39 33 41 48 49 49 58 56 56 58 73 Greatest Overweight (x) 9 | . 9 4 4 8 1 1 3 1 1 . . . . . . 9 . 1 . . . . . 1 Average Overweight (x) . | . 2 4 4 3 1 . 1 1 . . . . . . . . . . . . . . . . Largest Inventory Capacity 25 | 8 25 25 25 25 25 25 25 25 25 25 5 10 10 10 10 10 10 10 10 10 10 10 10 25 Average Capacity 18 | 8 22 25 25 25 25 25 25 25 23 6 5 7 10 10 10 10 10 10 10 10 10 10 10 9 Most Carried 25 | 8 25 25 25 25 25 25 25 25 25 25 5 10 8 10 10 10 10 10 10 10 10 9 10 21 Average Carried 17 | 6 18 24 25 23 24 24 24 24 22 5 4 6 7 9 9 9 9 9 9 9 9 8 8 6 Final Capacity 25 | 8 25 25 25 25 25 25 25 25 25 5 5 10 10 10 10 10 10 10 10 10 10 10 10 5 Final Carried 25 | 8 25 25 25 22 25 24 25 25 25 5 5 6 7 10 10 10 10 10 9 9 10 8 10 3 Class Distribution -------------------- 42% | Mutant 18% | Hacker-Sprinter 8% | Scavenger-Sprinter 6% | Scavenger-Mutant 6% | Hacker-Mutant 3% | Hacker-Scout 3% | Assassin Dominant Class ---------------- Mutant | -10/Materials Mutant | -10/Mines Mutant | -10/Exiles Mutant | -9/Mines Mutant | -8/Materials Hacker-Mutant | -7/Factory Mutant | -7/Storage Mutant | -7/Recycling Mutant | -7/Scraptown Hacker-Scout | -5/Factory Hacker-Scout | -5/Waste Hacker-Sprinter | -5/Factory Hacker-Sprinter | -5/Upper Caves Hacker-Sprinter | -5/Upper Caves Hacker-Sprinter | -5/Zhirov Hacker-Sprinter | -4/Proximity Caves Hacker-Sprinter | -4/Factory Hacker-Sprinter | -4/Extension Hacker-Scout | -3/Research Hacker-Scout | -3/Armory Hacker-Scout | -3/Lab Wizard-Ninja | -2/Research Wizard-Ninja | -2/Quarantine Scavenger-Sprinter | -2/Protoforge Resources | -11 -10 -10 -10 -9 -8 -7 -7 -7 -7 -5 -5 -5 -5 -5 -5 -4 -4 -4 -3 -3 -3 -2 -2 -2 ----------- Run | Yrd Mat Min Exi Min Mat Fac Sto Rec Scr Fac Was Fac Upp Upp Zhi Pro Fac Ext Res Arm Lab Res Qua Frg Matter Collected 9986 | 213 221 135 . 101 938 752 815 317 20 330 . 210 59 28 118 41 283 118 60 140 . 90 20 4977 Remotely . | . . . . . . . . . . . . . . . . . . . . . . . . . Salvage Created 15717 | 85 519 146 . 54 1404 773 972 410 . 292 . 318 57 . 371 . 444 641 439 . . . 20 8772 Parts 700 | 7 32 16 . 1 82 40 59 17 . 9 . 11 2 . 11 . 14 17 19 . . . 3 360 Haulers Intercepted 17 | . 2 . . . 5 2 3 . . 1 . 1 . . . . 2 . 1 . . . . . Recyclers Shooed 2 | . 1 . . . . . 1 . . . . . . . . . . . . . . . . . Parts Field Recycled . | . . . . . . . . . . . . . . . . . . . . . . . . . Retrieved Matter . | . . . . . . . . . . . . . . . . . . . . . . . . . Parts Self-Destructed 5 | . . . . . . . . . . . . . . . 5 . . . . . . . . . Prevented . | . . . . . . . . . . . . . . . . . . . . . . . . . Kills | -11 -10 -10 -10 -9 -8 -7 -7 -7 -7 -5 -5 -5 -5 -5 -5 -4 -4 -4 -3 -3 -3 -2 -2 -2 ------- Run | Yrd Mat Min Exi Min Mat Fac Sto Rec Scr Fac Was Fac Upp Upp Zhi Pro Fac Ext Res Arm Lab Res Qua Frg Combat Hostiles Destroyed 216 | . 13 4 . 1 27 9 17 1 . . . . . . . . . 2 . . . . . 142 Melee 22 | . . . . . . . . . . . . . . . . . . 2 . . . . . 20 Guns 134 | . 13 1 . 1 20 8 14 1 . . . . . . . . . . . . . . . 76 Cannons 36 | . . . . . 1 . . . . . . . . . . . . . . . . . . 35 AOE 15 | . . 3 . . 6 . 3 . . . . . . . . . . . . . . . . 3 Classes Destroyed 26 | 2 6 1 . 1 4 1 . . . . . . 1 . . . . 1 1 . . . . 8 Worker 3 | . 1 1 . . . . . . . 1 . . . . . . . . . . . . . . Builder 4 | . . 2 . . 1 1 . . . . . . . . . . . . . . . . . . Tunneler 1 | 1 . . . . . . . . . . . . . . . . . . . . . . . . Hauler 17 | . 2 . . . 5 2 3 . . 1 . 1 . . . . 2 . 1 . . . . . Recycler 15 | 1 1 . . . 1 2 . 5 . 1 . 1 . . . . 1 2 . . . . . . Mechanic 3 | . . . . . 1 . 1 . . . . . . . . . . . . . . . . 1 Operator 5 | . 1 . . . . . . . . . . 1 . . . . 1 . . . . . 1 1 Drone 30 | . . . . . . . . . . . . . . . . . . . . . . . . 30 Watcher 9 | . 1 . . . 1 . . . . 2 . 2 . . . . 3 . . . . . . . Swarmer 29 | . 9 . . . 7 . 3 . . . . . . . . . . . . . . . . 10 Saboteur 4 | . . . . . . . . . . . . . . . . . . . . . . . . 4 Grunt 40 | . 4 4 . . 11 2 5 . . . . . . . . . . . . . . . . 14 Brawler 5 | . . . . . 1 . . . . . . . . . . . . . . . . . . 4 Duelist 6 | . . . . . 1 . . . . . . . . . . . . . . . . . . 5 Protector 9 | . . . . . . . . . . . . . . . . . . . . . . . . 9 Sentry 21 | . . . . . 7 5 7 1 . . . . . . . . . . . . . . . 1 Demolisher 1 | . . . . 1 . . . . . . . . . . . . . . . . . . . . Hunter 13 | . . . . . . . . . . . . . . . . . . . . . . . . 13 Programmer 13 | . . . . . . 2 2 . . . . . . . . . . . . . . . . 9 Behemoth 2 | . . . . . . . . . . . . . . . . . . 2 . . . . . . Hotshot 9 | . . . . . . . . . . . . . . . . . . . . . . . . 9 Decapitator 5 | . . . . . . . . . . . . . . . . . . . . . . . . 5 Tracker 5 | . . . . . . . . . . . . . . . . . . . . . . . . 5 Combat Programmer 5 | . . . . . . . . . . . . . . . . . . . . . . . . 5 Striker 8 | . . . . . . . . . . . . . . . . . . . . . . . . 8 Executioner 9 | . . . . . . . . . . . . . . . . . . . . . . . . 9 Elite 1 | . . . . . . . . . . . . . . . . . . . . . . . . 1 Scrapoid 4 | . . . . . . . . . . . . . . . . . . . . . . . . 4 Samaritan 1 | . . . . . . . . . . . . . 1 . . . . . . . . . . . Savage 3 | . . . . . . . . . . . . . . . . . . . 3 . . . . . Butcher 1 | . . . . . . . . . . . . . . . . . . . 1 . . . . . Guerrilla 1 | . . . . . . . . . . . . . . . . . . . 1 . . . . . Best Kill Streak 13 | 2 6 4 . 1 6 2 3 5 . 2 . 2 . . . . 2 2 1 . . . 1 13 Combat Bots Only 13 | . 6 2 . 1 5 2 3 1 . . . . . . . . . 2 . . . . . 13 Max Kills in Single Turn 3 | 2 1 2 . 1 3 1 2 2 . 1 . 1 1 . . . 1 1 1 . . . 1 3 Gunslinging . | . . . . . . . . . . . . . . . . . . . . . . . . . Exploded 3 | . . 1 . . 2 . 2 . . . . . . . . . . . . . . . . 3 Melee 1 | . . . . . . . . . . . . . . . . . . 1 . . . . . 1 Uniques/NPCs Destroyed . | . . . . . . . . . . . . . . . . . . . . . . . . . Combat | -11 -10 -10 -10 -9 -8 -7 -7 -7 -7 -5 -5 -5 -5 -5 -5 -4 -4 -4 -3 -3 -3 -2 -2 -2 -------- Run | Yrd Mat Min Exi Min Mat Fac Sto Rec Scr Fac Was Fac Upp Upp Zhi Pro Fac Ext Res Arm Lab Res Qua Frg Hostile Shots Fired 1479 | . 42 4 . 37 120 248 291 45 . 8 . 20 . . . 2 14 25 2 8 . 1 32 580 Missed 611 | . 13 1 . 11 36 90 80 21 . 3 . 16 . . . . 11 6 1 5 . 1 24 292 Hits 868 | . 29 3 . 26 84 158 211 24 . 5 . 4 . . . 2 3 19 1 3 . . 8 288 Melee 15 | . . . . 7 3 . . . . . . . . . . . . . 1 . . . . 4 Projectile 853 | . 29 3 . 19 81 158 211 24 . 5 . 4 . . . 2 3 19 . 3 . . 8 284 AOE 16 | . . . . 12 . . . . . . . . . . . . . . . . . . . 4 Critical Strikes 35 | . . . . . 4 . 2 . . . . . . . . . . 1 1 . . . . 27 Actively Blocked 3 | . . . . . . . . . . . . . . . . . . . . . . . . 3 Part Disruptions 1 | . . . . . . . . . . . . . . . . . . . . . . . . 1 Damage Taken 16478 | . 290 47 . 821 1409 1415 1958 182 . 334 . 344 . . 7 51 61 438 40 49 . . 185 8847 Core 2402 | . 67 . . 117 117 148 154 12 . 117 . 35 . . 7 . 8 98 14 24 . . 31 1453 Absorbed by Shields 70 | . . . . . . . . . . . . . . . . . . 70 . . . . . . Redirected to Shielding 291 | . . . . . . . . . . . . . . . . . . . . . . . . 291 Regen/Repaired (Parts) 566 | . . . . . 183 . 239 . . 23 . . . . . . . . . . . . . 121 Core Remaining (%) 74 | 100 . . . 26 78 . . . 55 . . . . . . 84 . 90 . . 89 . . . Volleys Fired 897 | 3 43 14 . 8 102 63 78 11 . 9 . 3 3 3 . 20 23 . 3 1 . . 2 508 Largest 2 | 2 2 1 . 2 2 2 2 2 . 1 . 1 1 1 . 1 1 . 1 1 . . 1 2 Hottest 119 | 70 112 56 . 50 119 105 56 56 . 30 . 85 85 85 . 98 98 . 90 90 . . 100 115 Shots Fired 1302 | 6 86 14 . 16 192 122 137 23 . 9 . 3 3 3 . 20 23 . 3 1 . . 2 639 Gun 992 | 6 86 8 . 16 181 120 121 23 . . . . . . . . . . . . . . . 431 Cannon 291 | . . . . . 6 2 9 . . 9 . 3 3 3 . 20 23 . 3 1 . . 2 207 Launcher 19 | . . 6 . . 5 . 7 . . . . . . . . . . . . . . . . 1 Special . | . . . . . . . . . . . . . . . . . . . . . . . . . Kinetic 952 | 3 1 5 . 16 137 100 121 23 . . . . . . . . . . . . . . . 546 Thermal 311 | 3 85 3 . . 50 2 9 . . 9 . 3 3 3 . 20 23 . 3 1 . . 2 92 Explosive 19 | . . 6 . . 5 . 7 . . . . . . . . . . . . . . . . 1 Electromagnetic 20 | . . . . . . 20 . . . . . . . . . . . . . . . . . . Robot Hit Streak 40 | 3 8 4 . 3 21 30 20 10 . . . . . . . . . . . . . . . 40 Robot Miss Streak 7 | 1 4 2 . 2 4 2 3 2 . . . . . . . . . . . . . . . 7 Penetration Max 2 | . . . . . . . 1 1 . . . . . . . . . . . . . . . 2 Secondary Targets 6 | . 1 . . 1 1 . 1 . . . . . . . . . . . . . . . . 2 Max Gunslinging Chain 1 | . 1 . . 1 1 . 1 . . . . . . . . . . . . . . . . 1 Shots Hit Robots 965 | 4 45 5 . 9 142 88 101 16 . 6 . 9 2 . 8 . 12 32 21 . . . 1 464 Core Hits 557 | 3 25 11 . 4 60 30 50 8 . 3 . 3 . . 4 . 6 8 8 . . . 1 333 Critical Kills 35 | . . . . . . 1 1 . . . . . . . . . . . . . . . . 33 Critical Parts Destroyed 33 | . . . . . 1 . 2 . . . . . . . . . . . . . . . . 30 Critical Strikes 89 | . 2 . . . 7 1 3 . . . . . . . . . . . . . . . . 76 Burn 8 | . 2 . . . 6 . . . . . . . . . . . . . . . . . . . Meltdown 7 | . . . . . . . . . . . . . . . . . . . . . . . . 7 Destroy 70 | . . . . . 1 1 3 . . . . . . . . . . . . . . . . 65 Blast 2 | . . . . . . . . . . . . . . . . . . . . . . . . 2 Melee Attacks 396 | . . . . . 15 33 6 . . 16 . 62 7 12 8 14 62 55 32 3 5 3 9 54 Impact 54 | . . . . . 15 33 6 . . . . . . . . . . . . . . . . . Slashing 328 | . . . . . . . . . . 16 . 62 7 12 8 14 62 41 32 3 5 3 9 54 Piercing . | . . . . . . . . . . . . . . . . . . . . . . . . . Sneak Attacks 69 | . . . . . . 1 . . . 3 . 2 2 . . . 3 16 15 . . . . 27 Combat Hostiles . | . . . . . . . . . . . . . . . . . . . . . . . . . Follow-up Attacks 2 | . . . . . . . . . . . . . . . . . . . . . . . . 2 Damage Inflicted 34122 | 49 679 383 . 180 2860 1522 2215 358 . 401 . 515 155 . 642 . 716 994 1191 . . . 62 21200 Guns 18856 | 49 679 75 . 169 2211 1389 1728 358 . . . . . . . . . . . . . . . 12198 Cannons 5668 | . . . . . 107 . 65 . . . . . . . . . . . . . . . . 5496 Explosions 1601 | . . 308 . . 528 37 419 . . . . . . . . . . . . . . . . 309 Melee 7945 | . . . . . . 72 . . . 401 . 515 155 . 642 . 716 994 1191 . . . 62 3197 Ramming 52 | . . . . 11 14 24 3 . . . . . . . . . . . . . . . . . Kinetic 19649 | 24 6 75 . 169 1754 1171 1728 358 . . . . . . . . . . . . . . . 14364 Thermal 4649 | 25 673 . . . 564 37 65 . . . . . . . . . . . . . . . . 3285 Explosive 1564 | . . 308 . . 528 . 419 . . . . . . . . . . . . . . . . 309 Electromagnetic 218 | . . . . . . 218 . . . . . . . . . . . . . . . . . . Impact 117 | . . . . . . 72 . . . . . . . . . . . . . . . . . 45 Slashing 7873 | . . . . . . . . . . 401 . 515 155 . 642 . 716 994 1191 . . . 62 3197 Piercing . | . . . . . . . . . . . . . . . . . . . . . . . . . Highest Corruption 25 | . . . . . . 5 8 8 8 . . 4 4 4 4 4 1 2 . . . . . 25 Average Corruption 7 | . . . . . . 3 6 8 8 . . 2 4 4 4 4 1 1 . . . . . 13 Corruption Purged . | . . . . . . . . . . . . . . . . . . . . . . . . . Corruption Blocked . | . . . . . . . . . . . . . . . . . . . . . . . . . Effects 258 | . . . . . . 18 30 23 . . . 4 . 8 . 9 3 12 . . . . . 151 Message Errors 61 | . . . . . . 6 7 8 . . . . . 3 . 3 . 5 . . . . . 29 Matter Fused 44 | . . . . . . 2 4 1 . . . 1 . 2 . 1 1 1 . . . . . 31 Heat Flow Errors 21 | . . . . . . . 3 4 . . . . . 1 . 3 1 . . . . . . 9 Energy Discharges 26 | . . . . . . 2 2 4 . . . 2 . . . . . 2 . . . . . 14 Parts Rejected 3 | . . . . . . . . . . . . . . . . . . . . . . . . 3 Parts Fused 1 | . . . . . . . . . . . . . . . . 1 . . . . . . . . Data Loss (minor) 30 | . . . . . . 4 4 4 . . . 1 . 1 . . 1 3 . . . . . 12 Data Loss (major) 18 | . . . . . . 2 6 . . . . . . 1 . . . 1 . . . . . 8 Misfires 1 | . . . . . . . . 1 . . . . . . . . . . . . . . . . Alerts 5 | . . . . . . . 2 1 . . . . . . . 1 . . . . . . . 1 Misdirections 21 | . . . . . . . . . . . . . . . . . . . . . . . . 21 Weapon Failures 27 | . . . . . . 2 2 . . . . . . . . . . . . . . . . 23 Overload Shots . | . . . . . . . . . . . . . . . . . . . . . . . . . Overflow Damage 1542 | . . . . . 27 50 33 . . 164 . 138 103 . 87 . 56 153 . . . . . 731 Projectiles 231 | . . . . . . . 10 . . . . . . . . . . . . . . . . 221 Explosions 50 | . . . . . 27 . 23 . . . . . . . . . . . . . . . . . Melee 1261 | . . . . . . 50 . . . 164 . 138 103 . 87 . 56 153 . . . . . 510 Knockbacks 4 | . . . . . 1 1 . . . . . . . . . . . . . . . . . 2 Impact 2 | . . . . . 1 1 . . . . . . . . . . . . . . . . . . Kinetic 2 | . . . . . . . . . . . . . . . . . . . . . . . . 2 Secondary . | . . . . . . . . . . . . . . . . . . . . . . . . . Self-Inflicted Damage 240 | . . . . . 168 57 15 . . . . . . . . . . . . . . . . . Shots 4 | . . . . . 2 1 1 . . . . . . . . . . . . . . . . . Rammed 6 | . . . . 1 1 3 1 . . . . . . . . . . . . . . . . . Targets Rammed 7 | . . . . 1 2 3 1 . . . . . . . . . . . . . . . . . Kicked . | . . . . . . . . . . . . . . . . . . . . . . . . . Crushed 1 | . . . . . 1 . . . . . . . . . . . . . . . . . . . Highest Temperature 367 | 50 204 36 . 12 223 150 203 214 . 84 67 200 125 118 . 215 367 204 44 44 . . 120 235 Average Temperature 60 | 26 64 13 . 6 59 56 40 68 . 25 41 43 45 36 . 70 96 41 27 11 . . 65 68 Received Heat Transfer 2144 | . 60 27 . . 603 342 516 48 . 18 . 9 . . . 9 9 56 . . . . . 447 Effects 6 | . . . . . . . 1 . . . . 1 . . . . 4 . . . . . . . Shutdowns 3 | . . . . . . . . . . . . . . . . . 3 . . . . . . . Energy Bleed 2 | . . . . . . . . . . . . 1 . . . . 1 . . . . . . . Interference 1 | . . . . . . . 1 . . . . . . . . . . . . . . . . . Siege Activations . | . . . . . . . . . . . . . . . . . . . . . . . . . Martial Activations . | . . . . . . . . . . . . . . . . . . . . . . . . . Shielding Activations . | . . . . . . . . . . . . . . . . . . . . . . . . . Robots Disrupted . | . . . . . . . . . . . . . . . . . . . . . . . . . Combat Hostiles . | . . . . . . . . . . . . . . . . . . . . . . . . . Robots Corrupted 2 | . . . . . . 2 . . . . . . . . . . . . . . . . . . Combat Hostiles 1 | . . . . . . 1 . . . . . . . . . . . . . . . . . . Parts Fried 4 | . . . . . . 3 . . . . . . . . . . . . . . . . . 1 Impact Corruptions 2 | . . . . . . 2 . . . . . . . . . . . . . . . . . . Robots Melted 7 | . . . . . . . . . . . . . . . . . . . . . . . . 7 Combat Hostiles 7 | . . . . . . . . . . . . . . . . . . . . . . . . 7 Parts Melted 25 | . 3 . . . 5 . . . . . . . . . . . . . . . . . . 17 Heat Transferred 6238 | 74 1692 . . . 1665 50 74 . . . . . . . . . . . . . . . . 2683 Parts Sabotaged . | . . . . . . . . . . . . . . . . . . . . . . . . . Parts Stolen . | . . . . . . . . . . . . . . . . . . . . . . . . . Parts Stripped . | . . . . . . . . . . . . . . . . . . . . . . . . . Power Chain Reactions 1 | . . . . . . 1 . . . . . . . . . . . . . . . . . . Alert | -11 -10 -10 -10 -9 -8 -7 -7 -7 -7 -5 -5 -5 -5 -5 -5 -4 -4 -4 -3 -3 -3 -2 -2 -2 ------- Run | Yrd Mat Min Exi Min Mat Fac Sto Rec Scr Fac Was Fac Upp Upp Zhi Pro Fac Ext Res Arm Lab Res Qua Frg Maximum Alert Level 5 | . . . . . 1 . 1 1 . . . 1 . . . . 1 3 1 . . . . 5 Low Security (%) 71 | 100 100 100 . 100 90 100 48 65 . 100 100 96 . . . . 92 47 . 100 . 100 100 13 Level 1 13 | . . . . . 9 . 51 34 . . . 3 . . . . 7 17 100 . . . . 18 Level 2 4 | . . . . . . . . . . . . . . . . . . 33 . . . . . 11 Level 3 2 | . . . . . . . . . . . . . . . . . . . . . . . . 12 Level 4 1 | . . . . . . . . . . . . . . . . . . . . . . . . 9 Level 5 6 | . . . . . . . . . . . . . . . . . . . . . . . . 34 High Security . | . . . . . . . . . . . . . . . . . . . . . . . . . Max Security . | . . . . . . . . . . . . . . . . . . . . . . . . . Peak Influence 3351 | 10 193 94 . 71 280 158 396 262 . 40 20 211 . . . . 332 716 353 157 . 45 58 3351 Initial 353 | . . 45 . . . 53 66 147 . . 5 . . . . . . 159 353 146 . . 6 12 Average 308 | 4 58 17 . 16 110 45 166 173 . 16 7 95 . . . . 111 259 307 120 . 12 35 1146 Influence Increases 10775 | 10 416 161 . 111 912 430 870 251 . 153 15 580 . . 15 15 715 1322 76 98 . 84 107 4434 Destroy 0b10 Robot/C 4540 | . 260 80 . 80 540 180 460 20 . . . . . . . . . 620 . 20 . . . 2280 Destroy 0b10 Robot/NC 520 | 10 30 15 . . 45 25 25 25 . 25 . 25 . . 15 . 35 25 5 . . . 5 210 Destroy Leader 806 | . 66 20 . 20 142 54 128 . . 6 . 6 . . . . 10 52 2 10 . . . 290 Allied During Kill 598 | . . . . 11 . . 85 . . . . . . . . . . 491 . 5 . . . 6 Successful Hack 662 | . 42 . . . 25 52 18 54 . 68 . 151 . . . . 81 32 15 15 . 60 27 22 Select Force Hacks 120 | . . . . . . . . 120 . . . . . . . . . . . . . . . . Disable Machine 315 | . . . . . 45 30 75 30 . . . . . . . . . . . 15 . . 60 60 Destroy Structure 664 | . 3 46 . . 85 29 34 2 . 24 . 98 . . . . 124 42 24 18 . 9 15 111 Partial Spotted 420 | . . . . . . . . . . . 15 45 . . . . 75 45 15 . . . . 225 Lose Combat Pursuer 2130 | . 15 . . . 30 60 45 . . 30 . 255 . . . 15 390 15 15 15 . 15 . 1230 Influence Decreases 7506 | 10 298 279 . 111 793 401 640 549 80 138 30 369 139 72 10 20 389 975 470 283 94 73 95 1188 Entered New Map 1371 | . . 73 . . . 66 82 231 80 . 10 . 79 15 . 5 . 167 320 133 94 . 5 11 Time Decay 4499 | 10 288 206 . 50 603 315 398 318 . 130 20 329 60 57 10 15 359 246 150 140 . 28 80 687 Lost Part 648 | . 10 . . 10 40 20 40 . . 8 . 40 . . . . . . . . . . 10 470 Lost Ally 501 | . . . . 51 . . 120 . . . . . . . . . 30 270 . 10 . . . 20 Purge Threat 487 | . . . . . 150 . . . . . . . . . . . . 292 . . . 45 . . Squads Dispatched 96 | . 3 1 . 1 2 3 6 . . 4 . 7 . . . . 16 4 3 2 . 2 4 38 Investigation 32 | . 1 1 . . 1 . 1 . . 2 . 5 . . . . 10 2 1 2 . 2 . 4 Extermination 14 | . . . . . . 3 1 . . 1 . 2 . . . . 5 . 1 . . . 1 . Reinforcement 16 | . 2 . . 1 1 . 3 . . 1 . . . . . . 1 2 1 . . . . 4 Assault . | . . . . . . . . . . . . . . . . . . . . . . . . . Garrison 1 | . . . . . . . 1 . . . . . . . . . . . . . . . . . Intercept 33 | . . . . . . . . . . . . . . . . . . . . . . . 3 30 Searches Triggered . | . . . . . . . . . . . . . . . . . . . . . . . . . Construction Impeded 2 | . . . . 1 . . 1 . . . . . . . . . . . . . . . . . Haulers Reinforced 1 | . . . . . . . 1 . . . . . . . . . . . . . . . . . Active Scanning Responses . | . . . . . . . . . . . . . . . . . . . . . . . . . Cargo Convoy Interrupts 1 | . . . . . . . . . . . . 1 . . . . . . . . . . . . Stealth | -11 -10 -10 -10 -9 -8 -7 -7 -7 -7 -5 -5 -5 -5 -5 -5 -4 -4 -4 -3 -3 -3 -2 -2 -2 --------- Run | Yrd Mat Min Exi Min Mat Fac Sto Rec Scr Fac Was Fac Upp Upp Zhi Pro Fac Ext Res Arm Lab Res Qua Frg Distress Signals 29 | . . 1 . . 1 1 3 . . 1 . 1 . . . . 1 1 . 3 . 1 . 15 Communications Jammed 11 | . . . . . . . . . . . . . . . . . 9 . . . . 2 . . Distress Signals 11 | . . . . . . . . . . . . . . . . . 9 . . . . 2 . . Times Spotted 782 | . 22 4 . 12 40 16 26 1 . 13 5 34 . 3 . 1 38 29 5 6 . 6 4 517 Peak Tracking Total 31 | . 3 1 . 7 5 4 4 1 . 8 5 9 . 6 . 1 7 6 4 6 . 6 5 31 Tactical Retreats 75 | . 1 . . . 1 1 2 . . 2 . 8 . 1 . 1 12 1 1 1 . 1 . 42 Traps | -11 -10 -10 -10 -9 -8 -7 -7 -7 -7 -5 -5 -5 -5 -5 -5 -4 -4 -4 -3 -3 -3 -2 -2 -2 ------- Run | Yrd Mat Min Exi Min Mat Fac Sto Rec Scr Fac Was Fac Upp Upp Zhi Pro Fac Ext Res Arm Lab Res Qua Frg Traps Triggered 22 | . 4 . . . . 1 1 . . 6 . 3 . . . . 2 3 . . . . . 2 Indirectly . | . . . . . . . . . . . . . . . . . . . . . . . . . Trap Hack Attempts . | . . . . . . . . . . . . . . . . . . . . . . . . . Triggered . | . . . . . . . . . . . . . . . . . . . . . . . . . Disarmed 9 | . . . . . . . 3 . . . . . . . . . . 6 . . . . . . Reprogrammed . | . . . . . . . . . . . . . . . . . . . . . . . . . Reused . | . . . . . . . . . . . . . . . . . . . . . . . . . Traps Extracted . | . . . . . . . . . . . . . . . . . . . . . . . . . Installed . | . . . . . . . . . . . . . . . . . . . . . . . . . Triggered . | . . . . . . . . . . . . . . . . . . . . . . . . . Machines | -11 -10 -10 -10 -9 -8 -7 -7 -7 -7 -5 -5 -5 -5 -5 -5 -4 -4 -4 -3 -3 -3 -2 -2 -2 ---------- Run | Yrd Mat Min Exi Min Mat Fac Sto Rec Scr Fac Was Fac Upp Upp Zhi Pro Fac Ext Res Arm Lab Res Qua Frg Machines Disabled 26 | . . . . . 3 2 5 2 . . . . 2 . . . . 2 . 1 1 . 4 4 Max in Single Turn 1 | . . . . . 1 1 1 1 . . . . 1 . . . . . . 1 1 . 1 1 Garrison Access 6 | . . . . . . . . . . 1 . 2 . . . . 1 . 1 . . . 1 . Energy Cycler 1 | . . . . . . . . . . . . . . . . . . . . 1 . . . . Machines Repaired . | . . . . . . . . . . . . . . . . . . . . . . . . . Machines Dismantled . | . . . . . . . . . . . . . . . . . . . . . . . . . Machines Sabotaged . | . . . . . . . . . . . . . . . . . . . . . . . . . Overloaded Fab Kills . | . . . . . . . . . . . . . . . . . . . . . . . . . Hacking | -11 -10 -10 -10 -9 -8 -7 -7 -7 -7 -5 -5 -5 -5 -5 -5 -4 -4 -4 -3 -3 -3 -2 -2 -2 --------- Run | Yrd Mat Min Exi Min Mat Fac Sto Rec Scr Fac Was Fac Upp Upp Zhi Pro Fac Ext Res Arm Lab Res Qua Frg Machines Accessed 161 | . 9 1 4 . 9 7 10 10 5 12 . 14 2 . 5 . 26 18 5 3 2 7 6 6 Terminals 96 | . 7 . . . 7 5 7 6 . 5 . 8 1 . . . 15 17 4 2 . 5 4 3 Fabricators 8 | . . . . . . 1 . . . 1 . 2 . . . . 3 . . 1 . . . . Repair Stations 7 | . . . . . 2 . 2 . . 3 . . . . . . . . . . . . . . Recycling Units 23 | . 2 . . . . 1 1 4 . 1 . 2 . . . . 6 1 . . . 2 . 3 Scanalyzers 3 | . . . . . . . . . . 1 . . . . . . 1 . . . . . 1 . Garrison Access 6 | . . . . . . . . . . 1 . 2 . . . . 1 . 1 . . . 1 . Total Hacks 649 | . 22 1 49 . 26 24 25 25 49 47 . 62 7 . 18 . 142 37 12 9 19 36 21 18 Successful 432 | . 13 1 49 . 11 12 13 13 49 27 . 36 7 . 18 . 89 30 6 4 19 15 10 10 Failed 217 | . 9 . . . 15 12 12 12 . 20 . 26 . . . . 53 7 6 5 . 21 11 8 Catastrophic 35 | . 2 . . . 3 1 1 1 . 1 . 7 . . . . 11 . 1 . . 4 1 2 Database Lockouts . | . . . . . . . . . . . . . . . . . . . . . . . . . Manual 212 | . 13 . . . 10 11 8 10 . 20 . 33 . . . . 50 10 7 . 2 20 11 7 Terminals 379 | . 18 . . . 20 15 17 12 . 32 . 42 6 . . . 101 35 10 7 . 33 17 14 Fabricators 27 | . . . . . . 4 . . . 3 . 8 . . . . 10 . . 2 . . . . Repair Stations 17 | . . . . . 6 . 5 . . 6 . . . . . . . . . . . . . . Recycling Units 57 | . 4 . . . . 5 3 13 . 2 . 7 . . . . 14 2 . . . 3 . 4 Scanalyzers 22 | . . . . . . . . . . 3 . . . . . . 16 . . . . . 3 . Garrison Access 10 | . . . . . . . . . . 1 . 5 . . . . 1 . 2 . . . 1 . Terminal Hacks 286 | . 9 1 49 . 6 5 6 3 49 10 . 15 7 . 18 . 38 24 3 2 19 10 6 6 Record 148 | . . . 49 . . . . . 48 3 . . 7 . 6 . 9 1 . . 19 2 3 1 Part Schematic 16 | . . . . . . . . 1 . 1 . 2 . . 4 . 8 . . . . . . . Robot Schematic 1 | . . . . . . . . . . . . . . . . . . . . . . 1 . . Robot Analysis 8 | . . . . . . . 2 . . 1 . . . . 4 . . . . . . 1 . . Prototype ID Bank 21 | . 2 . . . 1 1 1 1 . 2 . 3 . . 4 . 3 2 . . . . . 1 Open Door 18 | . . 1 . . . . 2 . 1 . . . . . . . 1 12 . . . 1 . . Level Access Points 3 | . . . . . 1 . . . . . . 1 . . . . . . . . . . 1 . Branch Access Points 8 | . 1 . . . 1 1 . . . . . 1 . . . . 1 . . . . 1 1 1 Emergency Access Points 2 | . . . . . 1 . . . . . . . . . . . . . . 1 . . . . Machine Index 3 | . . . . . . . . . . 1 . . . . . . 1 . . . . . . 1 Terminal Index 6 | . 1 . . . 1 1 . . . . . 1 . . . . . 1 . . . 1 . . Fabricator Index 2 | . . . . . . . . . . . . 1 . . . . . . 1 . . . . . Repair Station Index 1 | . . . . . . . . . . . . 1 . . . . . . . . . . . . Recycling Unit Index 1 | . . . . . . . . . . . . . . . . . . 1 . . . . . . Garrison Index 1 | . . . . . . . . . . . . . . . . . . . 1 . . . . . Alert Level 3 | . . . . . . . . . . . . . . . . . 2 . . . . . . 1 Unreport Threat 5 | . . . . . 1 . . . . . . . . . . . . 2 . . . 2 . . Locate Traps 9 | . . . . . . . . . . . . 1 . . . . 4 2 1 . . 1 . . Disarm Traps 2 | . . . . . . . 1 . . . . . . . . . . 1 . . . . . . Maintenance Status 1 | . 1 . . . . . . . . . . . . . . . . . . . . . . . Patrol Status 1 | . . . . . . . . . . . . 1 . . . . . . . . . . . . Transport Status 2 | . 1 . . . . 1 . . . . . . . . . . . . . . . . . . Extermination Status 1 | . . . . . . . . . . . . . . . . . 1 . . . . . . . Recall Investigation 4 | . . . . . . . . . . 1 . 1 . . . . 1 1 . . . . . . Recall Extermination 2 | . . . . . . . . . . . . . . . . . 2 . . . . . . . Recall Reinforcements 1 | . . . . . . . . . . . . . . . . . . 1 . . . . . . Recall Assault 2 | . . . . . . . . . . . . . . . . . 2 . . . . . . . Hauler Manifests 5 | . 2 . . . . 1 . . . 1 . . . . . . 1 . . . . . . . Registered Components 3 | . 1 . . . . . . . . . . 1 . . . . 1 . . . . . . . Registered Prototypes 1 | . . . . . . . . 1 . . . . . . . . . . . . . . . . Zone Layout 5 | . . . . . . . . . . . . 1 . . . . 1 . . 1 . . 1 1 Fabricator Hacks 17 | . . . . . . 1 . . . 1 . 5 . . . . 8 . . 2 . . . . Network Status 4 | . . . . . . 1 . . . 1 . 1 . . . . 1 . . . . . . . Load Schematic 7 | . . . . . . . . . . . . 2 . . . . 4 . . 1 . . . . Build 6 | . . . . . . . . . . . . 2 . . . . 3 . . 1 . . . . Repair Station Hacks 10 | . . . . . 5 . 2 . . 3 . . . . . . . . . . . . . . Scan Component 5 | . . . . . 3 . 1 . . 1 . . . . . . . . . . . . . . Repair 4 | . . . . . 2 . 1 . . 1 . . . . . . . . . . . . . . Refit 1 | . . . . . . . . . . 1 . . . . . . . . . . . . . . Recycling Unit Hacks 19 | . 1 . . . . 2 1 5 . 1 . 2 . . . . 5 1 . . . 1 . . Report Inventory 17 | . 1 . . . . 1 1 4 . 1 . 2 . . . . 5 1 . . . 1 . . Retrieve Components 2 | . . . . . . 1 . 1 . . . . . . . . . . . . . . . . Scanalyzer 20 | . . . . . . . . . . 2 . . . . . . 16 . . . . . 2 . Insert Component 12 | . . . . . . . . . . 1 . . . . . . 9 . . . . . 2 . Analyze 8 | . . . . . . . . . . 1 . . . . . . 7 . . . . . . . Garrison Access Hacks 6 | . . . . . . . . . . 1 . 2 . . . . 1 . 1 . . . 1 . Seal Access 6 | . . . . . . . . . . 1 . 2 . . . . 1 . 1 . . . 1 . Unauthorized Hacks 73 | . 2 . . . . 4 4 5 . 9 . 12 . . . . 21 5 2 . . 4 1 4 Terminals 44 | . 1 . . . . 1 2 1 . 6 . 9 . . . . 14 4 2 . . 2 1 1 Assimilate 5 | . . . . . . . . . . . . 1 . . . . 3 1 . . . . . . Botnet 27 | . 1 . . . . 1 2 1 . 3 . 6 . . . . 5 3 2 . . 1 1 1 Disrupt 1 | . . . . . . . . . . . . . . . . . . . . . . 1 . . Operators 2 | . . . . . . . . . . 1 . . . . . . 1 . . . . . . . Skim 9 | . . . . . . . . . . 2 . 2 . . . . 5 . . . . . . . Fabricators 4 | . . . . . . 1 . . . 1 . 1 . . . . 1 . . . . . . . Report 1 | . . . . . . 1 . . . . . . . . . . . . . . . . . . Prioritize 1 | . . . . . . . . . . . . . . . . . 1 . . . . . . . Haulers 2 | . . . . . . . . . . 1 . 1 . . . . . . . . . . . . Repair Stations . | . . . . . . . . . . . . . . . . . . . . . . . . . Recycling Units 24 | . 1 . . . . 2 2 4 . 1 . 2 . . . . 6 1 . . . 2 . 3 Reject 2 | . . . . . . 1 1 . . . . . . . . . . . . . . . . . Mask 3 | . 1 . . . . 1 1 . . . . . . . . . . . . . . . . . Tunnel 4 | . . . . . . . . 4 . . . . . . . . . . . . . . . . Fedlink 14 | . . . . . . . . . . 1 . 2 . . . . 6 1 . . . 2 . 2 Scraphulk 1 | . . . . . . . . . . . . . . . . . . . . . . . . 1 Scanalyzers 1 | . . . . . . . . . . 1 . . . . . . . . . . . . . . Researchers 1 | . . . . . . . . . . 1 . . . . . . . . . . . . . . Garrison Access . | . . . . . . . . . . . . . . . . . . . . . . . . . Data Cores Recovered 3 | . . . . . . . . . . . . 1 . . . . 1 . . . . . 1 . Used 1 | . . . . . . . . . . . . . . . . . 1 . . . . . . . Hacking Detections 102 | . 8 . . . 9 6 7 8 . 10 . 12 . . . . 20 4 5 3 . 4 3 3 Full Trace Events 13 | . . . . . 1 . 1 . . 1 . 3 . . . . 4 . 1 2 . . . . Feedback Events . | . . . . . . . . . . . . . . . . . . . . . . . . . Feedback Blocked 1 | . . . . . . . . . . . . 1 . . . . . . . . . . . . Robot Schematics Acquired 1 | . . . . . . . . . . . . . . . . . . . . . . 1 . . Robots Built . | . . . . . . . . . . . . . . . . . . . . . . . . . Authchips . | . . . . . . . . . . . . . . . . . . . . . . . . . Time . | . . . . . . . . . . . . . . . . . . . . . . . . . Total Robot Build Rating . | . . . . . . . . . . . . . . . . . . . . . . . . . Part Schematics Acquired 21 | . . . . . . . . 1 . 2 . 2 . . 4 . 12 . . . . . . . Parts Built 7 | . . . . . . . . . . . . 2 . . . . 4 . . 1 . . . . Authchips . | . . . . . . . . . . . . . . . . . . . . . . . . . Time 432 | . . . . . . . . . . . . 100 . . . . 204 . . 128 . . . . Total Part Build Rating 45 | . . . . . . . . . . . . 10 . . . . 27 . . 8 . . . . Parts Repaired 4 | . . . . . 2 . 1 . . 1 . . . . . . . . . . . . . . Time 152 | . . . . . 70 . 38 . . 44 . . . . . . . . . . . . . . Parts Recycled . | . . . . . . . . . . . . . . . . . . . . . . . . . Recycled Matter . | . . . . . . . . . . . . . . . . . . . . . . . . . Retrieved Matter . | . . . . . . . . . . . . . . . . . . . . . . . . . Retrieved Components 12 | . . . . . . 10 . 2 . . . . . . . . . . . . . . . . Parts Scanalyzed 6 | . . . . . . . . . . 1 . . . . . . 5 . . . . . . . Part Schematics Acquired 6 | . . . . . . . . . . 1 . . . . . . 5 . . . . . . . Parts Damaged . | . . . . . . . . . . . . . . . . . . . . . . . . . Bothacking | -11 -10 -10 -10 -9 -8 -7 -7 -7 -7 -5 -5 -5 -5 -5 -5 -4 -4 -4 -3 -3 -3 -2 -2 -2 ------------ Run | Yrd Mat Min Exi Min Mat Fac Sto Rec Scr Fac Was Fac Upp Upp Zhi Pro Fac Ext Res Arm Lab Res Qua Frg Used RIF Installer . | . . . . . . . . . . . . . . . . . . . . . . . . . Robots Hacked 1 | . . . . . . . . . . . . . . . . . . 1 . . . . . . Non-combat . | . . . . . . . . . . . . . . . . . . . . . . . . . Combat 1 | . . . . . . . . . . . . . . . . . . 1 . . . . . . Robot Hacks Applied 1 | . . . . . . . . . . . . . . . . . . 1 . . . . . . parse_system 1 | . . . . . . . . . . . . . . . . . . 1 . . . . . . Relay Couplers Released . | . . . . . . . . . . . . . . . . . . . . . . . . . Fabnet Peak Effective % . | . . . . . . . . . . . . . . . . . . . . . . . . . Robots Rewired 11 | . . . . . . . . . . . . . . . . . . 7 . 4 . . . . Allies Hacked . | . . . . . . . . . . . . . . . . . . . . . . . . . Hacks Repelled 1 | . . . . . . . . . . . . . . . . . . 1 . . . . . . Allies | -11 -10 -10 -10 -9 -8 -7 -7 -7 -7 -5 -5 -5 -5 -5 -5 -4 -4 -4 -3 -3 -3 -2 -2 -2 -------- Run | Yrd Mat Min Exi Min Mat Fac Sto Rec Scr Fac Was Fac Upp Upp Zhi Pro Fac Ext Res Arm Lab Res Qua Frg Total Allies 48 | . . 1 . 3 . . 10 . . . . . . . . . 3 26 . 4 . . . 1 Largest Group 10 | . . 1 1 3 . . 10 . . . . . . . . . 2 10 4 4 . . . 1 Highest-Rated Group 486 | . . 31 31 40 . . 173 . . . . . . . . . 36 486 125 203 . . . 139 Highest-Rated Ally 159 | . . 31 31 16 . . 29 . . . . . . . . . 26 159 38 64 . . . 139 Total Orders 4 | . . . . . . . . . . . . . . . . . . . . 4 . . . . STAY 3 | . . . . . . . . . . . . . . . . . . . . 3 . . . . FOLLOW 1 | . . . . . . . . . . . . . . . . . . . . 1 . . . . Ally Attacks 308 | . . . . 14 . . 92 . . . . . . . . . . 172 . 3 . . . 27 Total Damage 8220 | . . . . 139 . . 1130 . . . . . . . . . . 5056 . 90 . . . 1805 Kills 57 | . . . . 3 . . 9 . . . . . . . . . . 32 . 1 . . . 12 Allies Corrupted 2 | . . . . . . . . . . . . . . . . . . 1 . 1 . . . . Allies Melted 7 | . . . . . . . . . . . . . . . . . . . . . . . . 7 Intel | -11 -10 -10 -10 -9 -8 -7 -7 -7 -7 -5 -5 -5 -5 -5 -5 -4 -4 -4 -3 -3 -3 -2 -2 -2 ------- Run | Yrd Mat Min Exi Min Mat Fac Sto Rec Scr Fac Was Fac Upp Upp Zhi Pro Fac Ext Res Arm Lab Res Qua Frg Active Infowar (turns) 15459 | 15 1467 895 . 194 776 1881 409 692 1582 250 . 666 127 282 78 277 981 915 312 280 46 80 161 3093 Optics 4350 | . . . . . . . . . 1354 13 . . . . . . . . . . . . . 2983 Sensors 10081 | . . . . . 776 1818 409 692 1148 249 . 499 127 282 78 277 967 904 312 269 45 80 161 988 Terrain 1166 | . . . . . . . . . . . . . . . . . . 46 299 266 . 79 161 315 Structural 338 | . . . . . . . . . . 214 . 124 . . . . . . . . . . . . Seismic 2571 | 15 1467 895 . 194 . . . . . . . . . . . . . . . . . . . . Machine Analysis 1122 | . . . . . . 1122 . . . . . . . . . . . . . . . . . . Cloaking 99 | . . . . . . . . . . . . . . . . . . . . . . . 61 38 Jamming 1012 | . . . . . . . . . . . . 367 . . . . 431 . . 9 28 80 97 . ECM 308 | . . . . . . . . . . . . 53 . 34 . . . . 11 3 . . . 207 Robot Analysis Total 8 | . . . . . . . 2 . . 1 . . . . 4 . . . . . . 1 . . Derelict Logs Recovered 6 | . . 1 . 2 . . . . . . . . 1 . . 2 . . . . . . . . Drone Launches . | . . . . . . . . . . . . . . . . . . . . . . . . . Drone Recoveries . | . . . . . . . . . . . . . . . . . . . . . . . . . Exploration | -11 -10 -10 -10 -9 -8 -7 -7 -7 -7 -5 -5 -5 -5 -5 -5 -4 -4 -4 -3 -3 -3 -2 -2 -2 ------------- Run | Yrd Mat Min Exi Min Mat Fac Sto Rec Scr Fac Was Fac Upp Upp Zhi Pro Fac Ext Res Arm Lab Res Qua Frg Turns Passed 19206 | 27 1511 897 761 210 2278 2341 1029 707 1582 337 46 753 127 282 78 277 981 917 312 280 65 80 161 3167 Spaces Moved 22316 | 13 810 605 544 113 732 962 477 576 1410 690 153 1872 400 310 166 460 2641 1273 520 497 119 226 430 6317 Core 193 | . . . . . . . . . 192 . . . . . . 1 . . . . . . . . Treads 1728 | . . . . 15 732 962 19 . . . . . . . . . . . . . . . . . Legs 183 | 13 170 . . . . . . . . . . . . . . . . . . . . . . . Wheels 4139 | . 640 605 544 98 . . 458 576 1218 . . . . . . . . . . . . . . . Hover . | . . . . . . . . . . . . . . . . . . . . . . . . . Flight 16073 | . . . . . . . . . . 690 153 1872 400 310 166 459 2641 1273 520 497 119 226 430 6317 Fastest Speed 6 | 120 115 140 140 140 240 159 115 115 50 6 14 11 11 14 24 11 6 6 19 24 28 28 24 6 Average Speed 58 | 120 158 140 140 160 241 165 121 115 106 22 22 23 23 23 24 24 20 21 25 28 28 28 27 24 Slowest Speed 500 | 120 260 140 140 320 243 242 242 115 115 32 23 27 24 24 24 500 24 100 26 29 28 28 28 122 Overloaded Moves 918 | . . . . . . . . . . 12 9 81 12 8 . 39 61 32 14 27 . . 93 530 Propulsion Burnouts . | . . . . . . . . . . . . . . . . . . . . . . . . . Robots Hopped 152 | . . . . . . . . . . 2 . 2 . . . . 29 17 2 1 . . 3 96 Potential Cave-ins 53 | . . . . . . . . . . . . . . . . . . . . . . . . 53 Cave-ins Triggered . | . . . . . . . . . . . . . . . . . . . . . . . . . Teleports 1 | . . . . . . . . . . . . . . . . . . . . 1 . . . . Exploration Rate (%) 56 | 2 96 93 92 32 69 22 71 95 87 26 82 45 56 34 62 64 62 84 15 20 95 12 45 50 Regions Visited 24 Branch Regions 15 Pre-discovered Areas 12 | . . . 1 . . . . 4 3 . . 1 . . 3 . . . . . . . . . Known Exits Taken 21 | . 1 1 1 1 1 1 1 1 1 . . 1 1 1 1 1 1 1 1 1 1 1 1 . Unknown Exits Taken 1 | 1 . . . . . . . . . . . . . . . . . . . . . . . . Scrap Searched 6 | . . 1 . . . . . . 3 . . . . 1 . 1 . . . . . . . . Spaces Dug 331 | . . 31 . . 32 29 10 . . 12 . 49 6 15 . 28 66 13 12 1 . 3 5 19 Terrain Destroyed 500 | . . 53 . . 89 31 35 . . 12 . 50 6 15 . 34 66 13 12 9 . 3 5 67 Melee 210 | . . . . . 14 29 3 . . 9 . 47 4 12 . 14 43 13 9 1 . 3 4 5 Projectile 122 | . . . . . 1 2 7 . . 3 . 3 2 3 . 20 23 . 3 . . . 1 54 AOE 168 | . . 53 . . 74 . 25 . . . . . . . . . . . . 8 . . . 8 Terrain Rammed . | . . . . . . . . . . . . . . . . . . . . . . . . . Walls Destroyed . | . . . . . . . . . . . . . . . . . . . . . . . . . Machines Disabled . | . . . . . . . . . . . . . . . . . . . . . . . . . Actions | -11 -10 -10 -10 -9 -8 -7 -7 -7 -7 -5 -5 -5 -5 -5 -5 -4 -4 -4 -3 -3 -3 -2 -2 -2 --------- Run | Yrd Mat Min Exi Min Mat Fac Sto Rec Scr Fac Was Fac Upp Upp Zhi Pro Fac Ext Res Arm Lab Res Qua Frg Total 26839 | 18 952 644 543 126 1043 1533 775 603 1514 846 164 2092 419 497 191 587 2936 1844 643 626 142 237 457 7407 Wait 2055 | . 17 8 . . 72 370 113 . 15 68 6 110 3 167 . 78 183 503 76 88 7 7 1 163 Move 22031 | 12 809 604 543 112 731 961 476 575 1409 686 152 1867 399 309 165 459 2584 1245 515 494 118 224 424 6158 Hop 109 | . . . . . . . . . . 2 . 2 . . . . 27 10 2 1 . . 2 63 Pick Up 249 | 2 34 6 . . 41 25 19 5 33 5 2 9 1 2 1 1 4 1 2 2 3 . 4 47 Fast Attach 181 | 1 6 . . . 3 6 13 1 9 6 . 8 . . 7 . 4 3 . 4 3 . 1 106 Attach 123 | . 1 . . 2 11 3 6 1 1 12 1 6 3 1 . 8 15 . 1 2 3 2 5 39 Detach 138 | . 4 . . . . 1 3 . 6 4 . 4 3 2 . 7 14 . . 4 2 . 3 81 Swap 204 | . 15 6 . 3 32 37 28 2 1 6 1 10 . 1 3 . 7 7 10 4 . . 4 27 Drop 331 | . 23 6 . . 34 31 30 8 40 19 2 11 . . 7 . 6 5 2 3 1 . 2 101 Fire 897 | 3 43 14 . 8 102 63 78 11 . 9 . 3 3 3 . 20 23 . 3 1 . . 2 508 Melee 387 | . . . . . 15 33 6 . . 16 . 62 7 12 8 14 62 52 32 3 5 3 9 48 Ram 1 | . . . . . . . 1 . . . . . . . . . . . . . . . . . Kick . | . . . . . . . . . . . . . . . . . . . . . . . . . Crush 6 | . . . . 1 2 3 . . . . . . . . . . . . . . . . . . Escape Stasis 39 | . . . . . . . . . . 13 . . . . . . 7 18 . . . 1 . . Rewire 22 | . . . . . . . 2 . . . . . . . . . . . . 20 . . . . Trap . | . . . . . . . . . . . . . . . . . . . . . . . . . Miscellaneous 66 | . . . . . . . . . . . . . . . . . . . . . . . . 66 Route ------- -11/Scrapyard -10/Materials (discovered 4 exits: [*Mat x3] / *Min) -10/Mines (discovered 4 exits: [*Mat x2] / *Exi / [*Sub]) -10/Exiles (discovered 2 exits: *Min x2) -9/Mines -8/Materials (discovered 3 exits: *Fac x3) -7/Factory (discovered 5 exits: *Fac / *Sto x2 / *Low x2) -7/Storage (discovered 2 exits: *Fac / *Rec) -7/Recycling (discovered 2 exits: *Fac / *Scr) -7/Scraptown (discovered 2 exits: *Fac x2) -5/Factory (discovered 3 exits: Fac / *Upp x2) -5/Waste -5/Factory (discovered 6 exits: *Fac x4 / *Upp x2) -5/Upper Caves -5/Upper Caves (discovered 2 exits: Fac / *Zhi) -5/Zhirov -4/Proximity Caves -4/Factory (discovered 5 exits: Res / Upp x2 / *Ext x2) -4/Extension (discovered 2 exits: *Res / *Cet) -3/Research (discovered 4 exits: Res x2 / *Arm / Tes) -3/Armory -3/Lab -2/Research (discovered 2 exits: *Qua x2) -2/Quarantine (discovered 3 exits: Acc / *Sec / *Frg) -2/Protoforge History --------- Turn | Location | Event 10 | -11/Scrapyard | Discovered new exit (range 3) 28 | -11/Scrapyard | Entered Materials 134 | -10/Materials | Identified exit to Mines 306 | -10/Materials | Build established: Mutant 557 | -10/Materials | Discovered new exit (range 3) 872 | -10/Materials | Discovered new exit (range 4) 1105 | -10/Materials | Discovered new exit (range 8) 1539 | -10/Materials | Entered Mines 1546 | -10/Mines | Received a Rocket Launcher from a helpful Derelict 1585 | -10/Mines | A weapon hastily lodged in a ceiling crevice suddenly fell to the ground 1842 | -10/Mines | Discovered new exit (range 7) 1874 | -10/Mines | Met a Derelict shopkeep closing up shop 1946 | -10/Mines | Discovered new exit (range 9) 1977 | -10/Mines | Discovered new exit (range 12) 2298 | -10/Mines | Received a Mining Laser from a helpful Derelict 2425 | -10/Mines | Deemed a non-threat by the Exiles lab entrance 2427 | -10/Mines | Discovered new exit (range 5) 2436 | -10/Mines | Identified exit to Exiles 2436 | -10/Mines | Entered Exiles 2436 | -10/Exiles | Accompanied by 1 ally 2455 | -10/Exiles | Discovered new exit (range 15) 2477 | -10/Exiles | Met 8R-AWN 2501 | -10/Exiles | Met EX-HEX 2571 | -10/Exiles | Met EX-DEC 2635 | -10/Exiles | Visited The Gauntlet 2819 | -10/Exiles | Learned location of Zion (-7) 2873 | -10/Exiles | Discovered new exit (range 14) 2891 | -10/Exiles | Identified exit to Mines 2995 | -10/Exiles | Met EX-BIN 3197 | -10/Exiles | Entered Mines 3228 | -9/Mines | Assisted by bots powering up and referring to "LRC-V3" 3263 | -9/Mines | Learned 2 Materials zone layouts 3265 | -9/Mines | Identified exit to Materials 3330 | -9/Mines | Assembled infested the area 3335 | -9/Mines | Assisted by a Guerilla fighting off Assembled 3373 | -9/Mines | Lost 4 allies 3388 | -9/Mines | Core integrity fell below 50% 3407 | -9/Mines | Entered Materials 3407 | -8/Materials | Evolved 4 slots: Propulsion x2, Utility x2 3974 | -8/Materials | Repaired Imp. Treads 4244 | -8/Materials | Build established: Scavenger-Mutant 4325 | -8/Materials | Discovered new exit (range 10) 5011 | -8/Materials | Build established: Mutant 5147 | -8/Materials | Identified exit to Factory 5195 | -8/Materials | Repaired Lgt. Nuclear Core? 5685 | -8/Materials | Entered Factory 5685 | -7/Factory | Evolved 2 slots: Propulsion x1, Utility x1 5686 | -7/Factory | Identified exit to Storage 5743 | -7/Factory | Discovered new exit (range 7) 5753 | -7/Factory | Identified exit to Lower Caves 6783 | -7/Factory | Build established: Assassin 7306 | -7/Factory | Build established: Hacker-Mutant 7499 | -7/Factory | Discovered new exit (range 7) 7509 | -7/Factory | Identified exit to Factory 8026 | -7/Factory | Entered Storage 8129 | -7/Storage | Repaired Arm. Treads 8263 | -7/Storage | Lost 3 parts (2u1w) 8320 | -7/Storage | Assisted by bots powering up and referring to "LRC-V3" 8392 | -7/Storage | Garrison activated, responded to threat 8431 | -7/Storage | Lost 6 allies 8494 | -7/Storage | Lost 3 allies 8709 | -7/Storage | Build established: Mutant 8872 | -7/Storage | Discovered exit to Factory (range 16) 9040 | -7/Storage | Used back door to open Recycling access 9040 | -7/Storage | Discovered new exit (range 5) 9054 | -7/Storage | Identified exit to Recycling 9055 | -7/Storage | Entered Recycling 9094 | -7/Recycling | Scanned before Scraplab entrance 9424 | -7/Recycling | Discovered new exit (range 16) 9738 | -7/Recycling | Entered Scraplab 9747 | -7/Recycling | Discovered new exit (range 3) 9761 | -7/Recycling | Identified exit to Scraptown 9762 | -7/Recycling | Entered Scraptown 9765 | -7/Scraptown | System corruption cleaned by C-Scrubber 10102 | -7/Scraptown | Discovered new exit (range 11) 10213 | -7/Scraptown | Visited The Evicted 10235 | -7/Scraptown | Visited Red Mages 10323 | -7/Scraptown | Visited Cave Peace 10364 | -7/Scraptown | Visited Fellowship of the Rings 10458 | -7/Scraptown | Visited UFD Registry 10458 | -7/Scraptown | Registered with UFD as "Boltcase" 10474 | -7/Scraptown | Visited Shadow of the Wyrm 10498 | -7/Scraptown | Visited Assassins FH 10538 | -7/Scraptown | Visited Comm Corps 10650 | -7/Scraptown | Visited Cartography Club 10669 | -7/Scraptown | Visited Junk Cannon Lab 10680 | -7/Scraptown | Found Prototype Special Weapon 10680 | -7/Scraptown | Identified Junk Cannon 10715 | -7/Scraptown | Visited Supply Room 10735 | -7/Scraptown | Visited LU-1G1's Boring Crew 10774 | -7/Scraptown | Visited Science Testing Area 10793 | -7/Scraptown | Visited Scrap Suit Storage 10835 | -7/Scraptown | Visited Derelict Rescue Squad 10865 | -7/Scraptown | Visited Sword Containment 10905 | -7/Scraptown | Visited Supply Room 10962 | -7/Scraptown | Visited Scrapoid Pod Storage 11030 | -7/Scraptown | Found Surveybot 17 Chip 11053 | -7/Scraptown | Found Deep Structural Scanner 11058 | -7/Scraptown | Learned location of Cetus (-4) 11058 | -7/Scraptown | Learned location of Archives (-4) 11058 | -7/Scraptown | Learned location of Hub_04(d) (-4) 11058 | -7/Scraptown | Learned 16 Factory zone layouts 11058 | -7/Scraptown | Learned 8 Materials zone layouts 11058 | -7/Scraptown | Learned 16 Lower Caves zone layouts 11058 | -7/Scraptown | Learned 16 Upper Caves zone layouts 11058 | -7/Scraptown | Learned 4 Hub_04(d) zone layouts 11058 | -7/Scraptown | Learned location of 1 exit from Lower Caves 11058 | -7/Scraptown | Learned location of 3 exits from Upper Caves 11058 | -7/Scraptown | Learned location of 2 exits from Proximity Caves 11283 | -7/Scraptown | Met Optimus 11283 | -7/Scraptown | Accepted into 0bPrime 11340 | -7/Scraptown | Discovered new exit (range 5) 11343 | -7/Scraptown | Identified exit to Factory 11344 | -7/Scraptown | Entered Factory 11344 | -5/Factory | Evolved 4 slots: Power x1, Propulsion x1, Utility x2 11345 | -5/Factory | Identified exit to Upper Caves 11346 | -5/Factory | Identified exit to Factory 11427 | -5/Factory | Loaded intel: 8 recycling unit locations 11625 | -5/Factory | Lost 3 parts (2p1u) 11671 | -5/Factory | Repaired Cld. Nuclear Pulse Thruster? 11681 | -5/Factory | Sucked down chute 11681 | -5/Factory | Entered Waste 11696 | -5/Waste | Spotted C-40 Crusher 11701 | -5/Waste | Spotted C-40 Crusher 11701 | -5/Waste | Spotted C-40 Crusher 11701 | -5/Waste | Spotted C-40 Crusher 11701 | -5/Waste | Spotted C-40 Crusher 11707 | -5/Waste | Spotted C-40 Crusher 11715 | -5/Waste | Discovered new exit (range 11) 11727 | -5/Waste | Identified exit to Factory 11727 | -5/Waste | Entered Factory 11790 | -5/Factory | Discovered exit to Factory (range 14) 11848 | -5/Factory | Build established: Hacker-Sprinter 11913 | -5/Factory | Fabricated Adv. Sensor Array? 12366 | -5/Factory | Loaded intel: 7 recycling unit locations 12366 | -5/Factory | Learned location of Protoforge (-2) 12471 | -5/Factory | Cargo convoy interrupted 12480 | -5/Factory | Entered Upper Caves 12481 | -5/Upper Caves | Identified exit to Upper Caves 12495 | -5/Upper Caves | Found Alien Artifact 12584 | -5/Upper Caves | Learned 8 Research zone layouts 12584 | -5/Upper Caves | Learned Research security intel 12584 | -5/Upper Caves | Learned Armory security intel 12584 | -5/Upper Caves | Learned Research terminal intel 12607 | -5/Upper Caves | Entered another Upper Caves area 12608 | -5/Upper Caves | Identified exit to Zhirov 12889 | -5/Upper Caves | Entered Zhirov 12889 | -5/Zhirov | Discovered new exit (range 3) 12891 | -5/Zhirov | Identified exit to Proximity Caves 12894 | -5/Zhirov | Met Zhirov 12899 | -5/Zhirov | Learned location of Quarantine (-2) 12903 | -5/Zhirov | Zhirov requested help retrieving the SGEMP Prototype 12908 | -5/Zhirov | Found Alien Artifact 12908 | -5/Zhirov | Identified Integrated Reactor 12908 | -5/Zhirov | Installed Integrated Reactor, increased core energy generation (+10) 12915 | -5/Zhirov | Found Alien Artifact 12967 | -5/Zhirov | Entered Proximity Caves 13158 | -4/Proximity Caves | Learned location of 1 exit from Upper Caves 13223 | -4/Proximity Caves | Spotted B-86 Titan 13244 | -4/Proximity Caves | Learned location of 1 exit from Research 13244 | -4/Proximity Caves | Entered Factory 13244 | -4/Factory | Evolved 2 slots: Propulsion x1, Utility x1 13371 | -4/Factory | Loaded intel: 8 recycling unit locations 13440 | -4/Factory | Identified exit to Upper Caves 13440 | -4/Factory | Identified exit to Extension 13615 | -4/Factory | Identified Dimensional Node Initializer 13615 | -4/Factory | Identified Transdimensional Reconstructor 13621 | -4/Factory | Discovered new exit (range 10) 13720 | -4/Factory | Fabricated Lrn. Terrain Scanner? 13724 | -4/Factory | Fabricated Adv. Hacking Suite? 13821 | -4/Factory | Learned 4 Testing zone layouts 13873 | -4/Factory | Loaded intel: 28 terminal locations 13953 | -4/Factory | Learned Quarantine emergency access door positions 13978 | -4/Factory | Learned Research terminal intel 14015 | -4/Factory | Learned location of 1 exit from Research 14060 | -4/Factory | Learned location of 1 exit from Proximity Caves 14142 | -4/Factory | Fabricated Mni. Fusion Reactor? 14225 | -4/Factory | Entered Extension 14235 | -4/Extension | Rescued a captive Derelict 14235 | -4/Extension | Rescued a captive Derelict 14236 | -4/Extension | Rescued a captive Derelict 14239 | -4/Extension | Rescued a captive Derelict 14256 | -4/Extension | Rescued A7 14273 | -4/Extension | Rescued a captive Derelict 14274 | -4/Extension | Rescued a captive Derelict 14279 | -4/Extension | Rescued a captive Derelict 14279 | -4/Extension | Rescued a captive Derelict 14298 | -4/Extension | Lost 3 allies 14311 | -4/Extension | Rescued a captive Derelict 14312 | -4/Extension | Rescued a captive Derelict 14332 | -4/Extension | Loaded intel: 1 recycling unit location 14332 | -4/Extension | Rescued a captive Derelict 14335 | -4/Extension | Spotted B-86 Titan 14723 | -4/Extension | Spotted B-86 Titan 14731 | -4/Extension | Destroyed B-86 Titan 14740 | -4/Extension | Destroyed B-86 Titan 14787 | -4/Extension | P-70 Sage assimilated allied 3Q-87D(l) 14789 | -4/Extension | P-70 Sage assimilated allied AT-Y01(b) 14792 | -4/Extension | Rescued a captive Derelict 14793 | -4/Extension | Rescued a captive Derelict 14796 | -4/Extension | Rescued a captive Derelict 14821 | -4/Extension | P-70 Sage assimilated allied IG-BSB(g) 14829 | -4/Extension | Extracted ID and sensor layout for unrecognized location from A7's data core 14862 | -4/Extension | Rescued a captive Derelict 14864 | -4/Extension | Rescued a captive Derelict 14932 | -4/Extension | Rescued a captive Derelict 14932 | -4/Extension | Rescued a captive Derelict 15043 | -4/Extension | Lost 3 allies 15071 | -4/Extension | Discovered new exit (range 10) 15072 | -4/Extension | Discovered new exit (range 7) 15093 | -4/Extension | Identified exit to Cetus 15111 | -4/Extension | Identified exit to Research 15133 | -4/Extension | Lost 5 allies 15142 | -4/Extension | Entered Research 15142 | -3/Research | Accompanied by 5 allies 15142 | -3/Research | Evolved 2 slots: Propulsion x1, Utility x1 15143 | -3/Research | Identified exit to Armory 15143 | -3/Research | Identified exit to Testing 15144 | -3/Research | Identified exit to Research 15146 | -3/Research | Loaded intel: 21 terminal locations 15202 | -3/Research | Murdered 5 allies 15342 | -3/Research | Discovered exit to Research (range 14) 15436 | -3/Research | Build established: Hacker-Scout 15454 | -3/Research | Entered Armory 15475 | -3/Armory | Found Prototype Processor 15475 | -3/Armory | Identified Exp. Terrain Scan Processor 15478 | -3/Armory | Found Prototype Processor 15478 | -3/Armory | Identified Spectral Analyzer 15483 | -3/Armory | Found Spectral Analyzer 15608 | -3/Armory | Energy Cycler disabled 15666 | -3/Armory | Fabricated Impulse Thruster Array? 15731 | -3/Armory | Warped through subspace to slip node 15731 | -3/Armory | Discovered new exit (range 1) 15731 | -3/Armory | Identified exit to Lab 15734 | -3/Armory | Entered Lab 15734 | -3/Lab | Discovered exit to Research (range 9) 15738 | -3/Lab | Hidden lab's door opened automatically 15738 | -3/Lab | Sensor layout match revealed 15738 | -3/Lab | Unable to decrypt terminal 15738 | -3/Lab | Opened the door to a hidden lab 15739 | -3/Lab | Gained access to the hidden lab's interior 15744 | -3/Lab | Unable to decrypt terminal 15746 | -3/Lab | Found Alien Artifact 15746 | -3/Lab | Identified Core Reset Matrix 15746 | -3/Lab | Used Core Reset Matrix 15750 | -3/Lab | Sensed 3 artifacts in vicinity 15755 | -3/Lab | Found Core Expander 15755 | -3/Lab | Installed Core Expander, added new Utility slot 15763 | -3/Lab | Found Integrated Mediator 15763 | -3/Lab | Installed Integrated Mediator, increased core attachment efficiency 15779 | -3/Lab | Found Prototype Hackware 15780 | -3/Lab | Detected by scanners 15781 | -3/Lab | Found Prototype Protection 15783 | -3/Lab | Found Prototype Energy Cannon 15787 | -3/Lab | Unable to decrypt terminal 15797 | -3/Lab | Discovered exit to Research (range 6) 15799 | -3/Lab | Entered Research 15799 | -2/Research | Evolved 2 slots: Utility x2 15800 | -2/Research | Identified Quantum Router 15814 | -2/Research | Identified exit to Quarantine 15830 | -2/Research | Loaded intel: 5 recycling unit locations 15879 | -2/Research | Entered Quarantine 15880 | -2/Quarantine | Detected hypermatrix surge 15880 | -2/Quarantine | Sensed 11 artifacts in vicinity 15907 | -2/Quarantine | Identified Warp Cannon 15908 | -2/Quarantine | Cryocooling Duct disabled 15923 | -2/Quarantine | Ambient heat levels rising (+20) 15923 | -2/Quarantine | Non-combat units ordered to evacuate 15938 | -2/Quarantine | Found Subatomic Replicator 15955 | -2/Quarantine | Found Prototype Processor 15957 | -2/Quarantine | Found Prototype Device 15959 | -2/Quarantine | Identified Exp. Melee Analysis Suite 15959 | -2/Quarantine | Identified Exp. Cloaking Device 15976 | -2/Quarantine | Found Phase Redirector 15984 | -2/Quarantine | Identified exit to Access 15997 | -2/Quarantine | Found Matter Drive 16009 | -2/Quarantine | Intercept squad dispatched 16018 | -2/Quarantine | Build established: Wizard-Ninja 16019 | -2/Quarantine | Spotted Tracker 16019 | -2/Quarantine | Spotted Tracker 16022 | -2/Quarantine | Spotted Fortress 16035 | -2/Quarantine | Discovered new exit (range 21) 16038 | -2/Quarantine | Discovered new exit (range 11) 16039 | -2/Quarantine | Identified exit to Section 7 16040 | -2/Quarantine | Identified exit to Protoforge 16040 | -2/Quarantine | Entered Protoforge 16041 | -2/Protoforge | Sensed 2 artifacts in vicinity 16059 | -2/Protoforge | Spotted Hotshot 16092 | -2/Protoforge | Spotted EXE-6 16092 | -2/Protoforge | Spotted EXE-6 16096 | -2/Protoforge | Spotted Decapitator 16096 | -2/Protoforge | Spotted Decapitator 16098 | -2/Protoforge | Superfortress began startup sequence 16107 | -2/Protoforge | UFD initiated attack on Protoforge 16107 | -2/Protoforge | Loaded intel: 3 recycling unit locations 16112 | -2/Protoforge | Spotted EXE-6 16143 | -2/Protoforge | Scraphulk reinforcements arrived 16146 | -2/Protoforge | Found Prototype Processor 16146 | -2/Protoforge | Identified Exp. Armor Integrity Analyzer 16151 | -2/Protoforge | Found Prototype Processor 16151 | -2/Protoforge | Identified Exp. Core Analyzer 16154 | -2/Protoforge | Optimus greeted in Protoforge 16160 | -2/Protoforge | Found Prototype Slashing Weapon 16160 | -2/Protoforge | Identified Exp. Terror Saw 16163 | -2/Protoforge | Found Exp. Terror Saw 16176 | -2/Protoforge | Intercept squad dispatched 16183 | -2/Protoforge | Lost 6 allies 16193 | -2/Protoforge | Spotted Tracker 16196 | -2/Protoforge | Spotted Tracker 16207 | -2/Protoforge | Identified Med. Regenerative Plating 16227 | -2/Protoforge | Spotted Combat Programmer 16232 | -2/Protoforge | Found Unknown Device 16232 | -2/Protoforge | Identified Scrap Suit 16234 | -2/Protoforge | Spotted Combat Programmer 16236 | -2/Protoforge | Combat Programmer assimilated allied QO-7AA(E) 16238 | -2/Protoforge | Met 7R-MNS 16267 | -2/Protoforge | Lost 7 allies 16300 | -2/Protoforge | Spotted AP7-3 16307 | -2/Protoforge | Found Corrupted Unknown Device 16307 | -2/Protoforge | Identified 0bPrime Scrap Suit 16349 | -2/Protoforge | Found Prototype Processor 16349 | -2/Protoforge | Identified Exp. Target Analyzer 16356 | -2/Protoforge | Lost 6 allies 16376 | -2/Protoforge | Found Prototype Device 16376 | -2/Protoforge | Identified Exp. ECM Suite 16379 | -2/Protoforge | Spotted Striker 16416 | -2/Protoforge | Forge Plexus network access discovered 16422 | -2/Protoforge | Spotted Immortal 16423 | -2/Protoforge | Spotted Immortal 16428 | -2/Protoforge | Spotted Executioner 16432 | -2/Protoforge | Spotted Executioner 16436 | -2/Protoforge | Spotted Executioner 16436 | -2/Protoforge | Spotted Striker 16448 | -2/Protoforge | Destroyed Executioner 16464 | -2/Protoforge | Allies destroyed Striker 16465 | -2/Protoforge | Spotted Immortal 16486 | -2/Protoforge | Intercept squad dispatched 16491 | -2/Protoforge | Lost 7 allies 16500 | -2/Protoforge | Spotted Tracker 16501 | -2/Protoforge | Spotted Tracker 16516 | -2/Protoforge | Initialized slip node 16529 | -2/Protoforge | Spotted Striker 16531 | -2/Protoforge | Spotted Striker 16592 | -2/Protoforge | Spotted Executioner 16593 | -2/Protoforge | Spotted Combat Programmer 16619 | -2/Protoforge | Found UFD Drillbomb 16641 | -2/Protoforge | Spotted Executioner 16641 | -2/Protoforge | Spotted Striker 16641 | -2/Protoforge | Spotted Executioner 16646 | -2/Protoforge | Spotted Hotshot 16648 | -2/Protoforge | Spotted Hotshot 16664 | -2/Protoforge | Spotted Executioner 16664 | -2/Protoforge | Spotted Overlord 16667 | -2/Protoforge | Intercept squad dispatched 16677 | -2/Protoforge | Found UFD Drillbomb 16682 | -2/Protoforge | Spotted Tracker 16683 | -2/Protoforge | Spotted Tracker 16709 | -2/Protoforge | Spotted Executioner 16709 | -2/Protoforge | Spotted Striker 16747 | -2/Protoforge | Spotted Combat Programmer 16750 | -2/Protoforge | Spotted Combat Programmer 16756 | -2/Protoforge | Spotted Executioner 16761 | -2/Protoforge | Spotted Executioner 16788 | -2/Protoforge | Spotted Executioner 16790 | -2/Protoforge | Spotted Striker 16846 | -2/Protoforge | Lost 17 allies 16865 | -2/Protoforge | Installed UFD Drillbomb at designated target 16865 | -2/Protoforge | UFD reported confirmed Drillbomb installation 16876 | -2/Protoforge | Build established: Scavenger-Ninja 16876 | -2/Protoforge | Intercept squad dispatched 16879 | -2/Protoforge | Spotted Hotshot 16880 | -2/Protoforge | Spotted Hotshot 16890 | -2/Protoforge | Spotted Hotshot 16890 | -2/Protoforge | Spotted Hotshot 16896 | -2/Protoforge | Found UFD Drillbomb 16902 | -2/Protoforge | Spotted Tracker 16902 | -2/Protoforge | Spotted Tracker 16933 | -2/Protoforge | Spotted Executioner 16940 | -2/Protoforge | Spotted Striker 16940 | -2/Protoforge | Spotted Striker 16941 | -2/Protoforge | Spotted Combat Programmer 16941 | -2/Protoforge | Spotted Combat Programmer 16941 | -2/Protoforge | Spotted Striker 16963 | -2/Protoforge | Spotted AP7-3 16973 | -2/Protoforge | Lost 16 allies 16979 | -2/Protoforge | Found Exp. Core Analyzer 16980 | -2/Protoforge | Lost 4 parts (1p2n1u) 17016 | -2/Protoforge | Spotted Striker 17016 | -2/Protoforge | Spotted Executioner 17023 | -2/Protoforge | Spotted Executioner 17024 | -2/Protoforge | Destroyed Striker 17037 | -2/Protoforge | Found Cep. XC Strikerail 17042 | -2/Protoforge | Destroyed Executioner 17062 | -2/Protoforge | System corruption reached 10% 17103 | -2/Protoforge | Lost 16 allies 17103 | -2/Protoforge | Found Cep. XC Strikerail 17151 | -2/Protoforge | Intercept squad dispatched 17158 | -2/Protoforge | Spotted Striker 17159 | -2/Protoforge | Spotted Executioner 17193 | -2/Protoforge | Spotted Executioner 17193 | -2/Protoforge | Spotted Tracker 17212 | -2/Protoforge | Lost 5 allies 17236 | -2/Protoforge | Destroyed Executioner 17246 | -2/Protoforge | Spotted Executioner 17250 | -2/Protoforge | Spotted Striker 17280 | -2/Protoforge | Spotted Hotshot 17280 | -2/Protoforge | Spotted Hotshot 17280 | -2/Protoforge | Spotted Hotshot 17281 | -2/Protoforge | Spotted Hotshot 17285 | -2/Protoforge | Lost 3 parts (1p1n1u) 17290 | -2/Protoforge | Destroyed Hotshot 17293 | -2/Protoforge | Destroyed Hotshot 17297 | -2/Protoforge | Destroyed Hotshot 17299 | -2/Protoforge | Lost 4 allies 17319 | -2/Protoforge | Spotted Striker 17334 | -2/Protoforge | Spotted Striker 17352 | -2/Protoforge | Destroyed Striker 17364 | -2/Protoforge | Spotted Striker 17410 | -2/Protoforge | Lost 7 allies 17427 | -2/Protoforge | Installed UFD Drillbomb at designated target 17427 | -2/Protoforge | UFD reported confirmed Drillbomb installation 17432 | -2/Protoforge | Spotted Striker 17450 | -2/Protoforge | Destroyed Striker 17483 | -2/Protoforge | Lost 3 allies 17493 | -2/Protoforge | Spotted Striker 17494 | -2/Protoforge | Spotted Striker 17521 | -2/Protoforge | Build established: Scavenger-Mutant 17528 | -2/Protoforge | Spotted Executioner 17534 | -2/Protoforge | Spotted Executioner 17569 | -2/Protoforge | P-80 Master assimilated allied 1D-0R8(j) 17595 | -2/Protoforge | Destroyed Executioner 17635 | -2/Protoforge | Spotted Executioner 17637 | -2/Protoforge | Spotted Striker 17647 | -2/Protoforge | Destroyed Striker 17663 | -2/Protoforge | Intercept squad dispatched 17677 | -2/Protoforge | Spotted Tracker 17677 | -2/Protoforge | Spotted Tracker 17685 | -2/Protoforge | Destroyed Tracker 17693 | -2/Protoforge | Spotted Executioner 17696 | -2/Protoforge | Found 0bPrime Scrap Suit 17697 | -2/Protoforge | Spotted Executioner 17705 | -2/Protoforge | Destroyed Executioner 17708 | -2/Protoforge | Spotted Combat Programmer 17715 | -2/Protoforge | Found Prototype Processor 17715 | -2/Protoforge | Identified Exp. Targeting Computer 17726 | -2/Protoforge | Destroyed 11 combat bots 17729 | -2/Protoforge | Spotted Combat Programmer 17737 | -2/Protoforge | Spotted Decapitator 17738 | -2/Protoforge | Spotted Decapitator 17739 | -2/Protoforge | Spotted Decapitator 17743 | -2/Protoforge | Lost 3 parts (1p2u) 17744 | -2/Protoforge | Destroyed Decapitator 17746 | -2/Protoforge | Destroyed Decapitator 17747 | -2/Protoforge | Destroyed Decapitator 17756 | -2/Protoforge | Found Prototype Device 17756 | -2/Protoforge | Identified Adv. Kinecellerator 17764 | -2/Protoforge | Spotted Executioner 17764 | -2/Protoforge | Spotted Hotshot 17764 | -2/Protoforge | Spotted Hotshot 17766 | -2/Protoforge | Spotted Striker 17770 | -2/Protoforge | Found Exp. Core Analyzer 17772 | -2/Protoforge | Lost 31 allies 17803 | -2/Protoforge | Spotted Hotshot 17811 | -2/Protoforge | Spotted Hotshot 17812 | -2/Protoforge | Destroyed Hotshot 17814 | -2/Protoforge | Spotted Hotshot 17814 | -2/Protoforge | Destroyed Hotshot 17821 | -2/Protoforge | Destroyed Hotshot 17830 | -2/Protoforge | Spotted Hotshot 17833 | -2/Protoforge | Spotted Hotshot 17833 | -2/Protoforge | Spotted Hotshot 17843 | -2/Protoforge | Found UFD Drillbomb 17849 | -2/Protoforge | Destroyed 7 combat bots 17850 | -2/Protoforge | Lost 6 allies 17855 | -2/Protoforge | Spotted Striker 17857 | -2/Protoforge | Spotted Executioner 17894 | -2/Protoforge | Spotted Striker 17896 | -2/Protoforge | Spotted Striker 17911 | -2/Protoforge | Spotted Executioner 17917 | -2/Protoforge | Spotted Executioner 17937 | -2/Protoforge | Core integrity fell below 50% 17941 | -2/Protoforge | Destroyed Striker 17943 | -2/Protoforge | Spotted Executioner 17945 | -2/Protoforge | Spotted Striker 17945 | -2/Protoforge | Destroyed Executioner 17949 | -2/Protoforge | Spotted Executioner 17967 | -2/Protoforge | Destroyed Striker 17982 | -2/Protoforge | Build established: Scavenger-Sprinter 17984 | -2/Protoforge | Lost 3 parts (1p1u1w) 18002 | -2/Protoforge | Spotted Executioner 18014 | -2/Protoforge | Spotted Striker 18016 | -2/Protoforge | Spotted Striker 18020 | -2/Protoforge | Destroyed 12 combat bots 18033 | -2/Protoforge | Spotted Hotshot 18033 | -2/Protoforge | Spotted Hotshot 18034 | -2/Protoforge | Spotted Hotshot 18038 | -2/Protoforge | Found Exp. Targeting Computer 18061 | -2/Protoforge | Found Exp. Targeting Computer 18066 | -2/Protoforge | Spotted Hotshot 18069 | -2/Protoforge | Intercept squad dispatched 18085 | -2/Protoforge | Spotted Tracker 18085 | -2/Protoforge | Spotted Tracker 18118 | -2/Protoforge | Spotted Combat Programmer 18122 | -2/Protoforge | Lost 37 allies 18127 | -2/Protoforge | Spotted Striker 18131 | -2/Protoforge | Spotted Striker 18132 | -2/Protoforge | Spotted Combat Programmer 18137 | -2/Protoforge | Combat Programmer assimilated allied 02F31-K 18139 | -2/Protoforge | Spotted Hotshot 18142 | -2/Protoforge | Spotted Hotshot 18146 | -2/Protoforge | Destroyed Combat Programmer 18158 | -2/Protoforge | Destroyed Hotshot 18166 | -2/Protoforge | Spotted Executioner 18171 | -2/Protoforge | Lost 4 allies 18177 | -2/Protoforge | Spotted Executioner 18203 | -2/Protoforge | Spotted Striker 18205 | -2/Protoforge | Spotted Striker 18218 | -2/Protoforge | Found Exp. Core Analyzer 18221 | -2/Protoforge | Destroyed 7 combat bots 18221 | -2/Protoforge | Lost 5 allies 18232 | -2/Protoforge | Spotted Executioner 18254 | -2/Protoforge | Found UFD Drillbomb 18259 | -2/Protoforge | Spotted Executioner 18267 | -2/Protoforge | Found UFD Drillbomb 18310 | -2/Protoforge | Installed UFD Drillbomb at designated target 18310 | -2/Protoforge | UFD reported confirmed Drillbomb installation 18318 | -2/Protoforge | Spotted Striker 18319 | -2/Protoforge | Found UFD Drillbomb 18339 | -2/Protoforge | Installed UFD Drillbomb at designated target 18339 | -2/Protoforge | UFD reported confirmed Drillbomb installation 18359 | -2/Protoforge | Found UFD Drillbomb 18361 | -2/Protoforge | Spotted Executioner 18364 | -2/Protoforge | Spotted Executioner 18376 | -2/Protoforge | Found Exp. Targeting Computer 18398 | -2/Protoforge | Installed UFD Drillbomb at designated target 18398 | -2/Protoforge | UFD reported confirmed Drillbomb installation 18402 | -2/Protoforge | Found Exp. Core Analyzer 18405 | -2/Protoforge | Found Exp. Core Analyzer 18407 | -2/Protoforge | Lost 5 allies 18408 | -2/Protoforge | Found Exp. Targeting Computer 18413 | -2/Protoforge | Spotted Striker 18413 | -2/Protoforge | Spotted Striker 18421 | -2/Protoforge | Destroyed Executioner 18430 | -2/Protoforge | Spotted Executioner 18438 | -2/Protoforge | Spotted Executioner 18443 | -2/Protoforge | Spotted Striker 18452 | -2/Protoforge | Spotted Decapitator 18452 | -2/Protoforge | Spotted Decapitator 18452 | -2/Protoforge | Spotted Decapitator 18452 | -2/Protoforge | Spotted Decapitator 18464 | -2/Protoforge | Destroyed Decapitator 18483 | -2/Protoforge | Found Prototype Launcher 18508 | -2/Protoforge | Identified Cep. Concussive Dispersal Blaster 18511 | -2/Protoforge | Intercept squad dispatched 18525 | -2/Protoforge | Spotted Tracker 18526 | -2/Protoforge | Spotted Tracker 18527 | -2/Protoforge | Destroyed Tracker 18530 | -2/Protoforge | Lost 12 allies 18550 | -2/Protoforge | Spotted Combat Programmer 18579 | -2/Protoforge | Spotted Executioner 18579 | -2/Protoforge | Spotted Combat Programmer 18579 | -2/Protoforge | Spotted Striker 18586 | -2/Protoforge | Destroyed Combat Programmer 18603 | -2/Protoforge | Destroyed Combat Programmer 18624 | -2/Protoforge | Spotted Executioner 18629 | -2/Protoforge | Lost 4 allies 18629 | -2/Protoforge | Found UFD Drillbomb 18637 | -2/Protoforge | Spotted Hotshot 18639 | -2/Protoforge | Spotted Executioner 18639 | -2/Protoforge | Spotted Executioner 18641 | -2/Protoforge | Destroyed 9 combat bots 18666 | -2/Protoforge | Spotted Hotshot 18666 | -2/Protoforge | Spotted Hotshot 18666 | -2/Protoforge | Spotted Executioner 18666 | -2/Protoforge | Spotted Striker 18678 | -2/Protoforge | Spotted Decapitator 18681 | -2/Protoforge | Found UFD Drillbomb 18686 | -2/Protoforge | Spotted Decapitator 18687 | -2/Protoforge | Spotted Decapitator 18688 | -2/Protoforge | Destroyed Decapitator 18701 | -2/Protoforge | Intercept squad dispatched 18712 | -2/Protoforge | Spotted Tracker 18714 | -2/Protoforge | Spotted Tracker 18714 | -2/Protoforge | Spotted Tracker 18717 | -2/Protoforge | Destroyed Tracker 18720 | -2/Protoforge | Core integrity fell below 20% 18724 | -2/Protoforge | Destroyed Tracker 18726 | -2/Protoforge | Destroyed Tracker 18733 | -2/Protoforge | Spotted Executioner 18735 | -2/Protoforge | Found 0bPrime Scrap Suit 18748 | -2/Protoforge | Spotted Combat Programmer 18748 | -2/Protoforge | Spotted Combat Programmer 18749 | -2/Protoforge | Spotted Combat Programmer 18784 | -2/Protoforge | Lost 4 parts (1p1n1u1w) 18797 | -2/Protoforge | Combat Programmer assimilated allied 02F41-K 18797 | -2/Protoforge | Spotted 02F41-K 18805 | -2/Protoforge | Combat Programmer assimilated allied 02F43-K 18806 | -2/Protoforge | Spotted 02F43-K 18817 | -2/Protoforge | Spotted Striker 18817 | -2/Protoforge | Spotted Striker 18824 | -2/Protoforge | Destroyed Striker 18831 | -2/Protoforge | Spotted Striker 18831 | -2/Protoforge | Spotted Executioner 18881 | -2/Protoforge | Spotted Hotshot 18881 | -2/Protoforge | Spotted Hotshot 18887 | -2/Protoforge | Spotted Executioner 18888 | -2/Protoforge | Spotted Executioner 18888 | -2/Protoforge | Spotted Executioner 18889 | -2/Protoforge | Spotted Executioner 18904 | -2/Protoforge | Intercept squad dispatched 18919 | -2/Protoforge | Lost 38 allies 18932 | -2/Protoforge | Spotted Tracker 18933 | -2/Protoforge | Spotted Tracker 18933 | -2/Protoforge | Spotted Tracker 18964 | -2/Protoforge | Destroyed Executioner 18968 | -2/Protoforge | Spotted Combat Programmer 18978 | -2/Protoforge | Spotted Combat Programmer 18978 | -2/Protoforge | Spotted Combat Programmer 18982 | -2/Protoforge | Destroyed Combat Programmer 18985 | -2/Protoforge | Destroyed Combat Programmer 18988 | -2/Protoforge | Destroyed Hotshot 19020 | -2/Protoforge | Found Exp. Targeting Computer 19021 | -2/Protoforge | Spotted Striker 19024 | -2/Protoforge | Spotted Striker 19029 | -2/Protoforge | Lost 12 allies 19031 | -2/Protoforge | Destroyed 13 combat bots 19036 | -2/Protoforge | Spotted Hotshot 19043 | -2/Protoforge | Spotted Hotshot 19049 | -2/Protoforge | Spotted Executioner 19052 | -2/Protoforge | Spotted Striker 19076 | -2/Protoforge | Destroyed Hotshot 19095 | -2/Protoforge | Spotted Striker 19096 | -2/Protoforge | Spotted Striker 19104 | -2/Protoforge | Destroyed 8 combat bots 19106 | -2/Protoforge | Destroyed Executioner 19108 | -2/Protoforge | Destroyed Striker 19112 | -2/Protoforge | Lost 13 allies 19123 | -2/Protoforge | Found 0bPrime Scrap Suit 19129 | -2/Protoforge | P-80 Master assimilated allied 02FHN-D 19158 | -2/Protoforge | Spotted Executioner 19158 | -2/Protoforge | Spotted Executioner 19163 | -2/Protoforge | Installed UFD Drillbomb at designated target 19163 | -2/Protoforge | UFD reported confirmed Drillbomb installation 19173 | -2/Protoforge | Found UFD Drillbomb 19189 | -2/Protoforge | Spotted Striker 19193 | -2/Protoforge | Spotted Striker 19207 | -2/Protoforge | Destroyed by Striker with Compact Linear Accelerator Last Messages --------------- 19202_ N-04 Retriever collects Corrupted 0bPrime Scrap Suit. 19202_ Slug penetrates N-04 Retriever. 19202_ N-04 Retriever destroyed. 19203_ Slug penetrates H-88 Terminator. 19204_ JU-KDD(E) cannibalizes Exp. Heat Sink to repair Mak. Coolant Network. 19204_ 0bP_NET: Lugger 547 inbound, all units not involved in other operations escort to target. 19204_ Penetrated by Slug. 19204_ Striker suffers critical hit (Destroy). 19204_ Destroyed Impulse Thruster Array. 19205_ Imp. Target Analyzer destroyed. 19205_ Centrium Light Armor Plating destroyed. 19205_ Slug penetrates H-88 Terminator. 19205_ H-88 Terminator destroyed. 19206_ Slug penetrates H-88 Terminator. 19206_ JU-KDD(E) destroyed. 19207_ Slug penetrates Lugger 888. Map ----- +----------------------------------------------------+ | "%" ##??##?################## | | ####"" / ######################### | | # " " %%######################### | | " # "%= " =! ################## % | | " #=*%%[ %!" """" ### ############## % "" | | " #[[%*= [ " """" ## ############## "" | | #"!%[!!!!%* " ## # ######## % | | *= #"=%!!!%%!* ## # ######## % % | | ##!%=!!==!! %!! # #; ######## %% | | "* " #[=%%=%%;;=;&!;;;;#; ######## % %% | | " " "=%%*%%=;%!%[==[ #; ######## % % | | #""" [%!%!=!=%[[[!![[ =;; ;####### % %% | | [[!"""*=[%%%%!%%%%*=% [=;= % *##### # % %% | | =*%= %=/!/=%* ==%=! !=&!%! # # % | | %!![![===! %% =*=% %m!!=[! [/*!!! #% % % | | ="" "%!!%% = [&[=[=[!%!!*!!!!!=##%% % | | %""% "*=% %[ !%! !=!=![!=*!*![#% % % | | %%""% *%%%%% =[!E*[!%= !=*!= =%#%% % | | " %%%; %% %!|%%[%%!j& % %%##SS&% % * | | ; %%%% %!!!A%%%%=%%%mn[n%!nnSS%%=% % ! | | % %% % %[**%%%s*&&SSss%%%!%%%%%%%%%% "= % | | !%"";;%% % %=%[*E%!&%SS%%%% n%&%%/%%%%% %%% | | [ ;; % %[!%%%[%E%%%%* %%%%%%#%|%%%%%%%% | | = ;!% % %%[%% %=%!!!%%%=& [ %%#%%%%%% % % | | !%%[*!% * [%%%%% %![=%%%*%=== = = !# & &% %%% | | =!*[[* !!! %%%%%%[*%%*&%@%&!] =%# %"&%%% % | | *!=%;%[!=h% %%%%% %* [% == * =*[&=!# # !=%%%%%% | | ==% % K%%**% %%%!%%! ! %[]!== # #[ !=!%%% [!! | | [[= ;%%=== %% !!/ ""!%! #!![===[%%[ | | !![%; %! %%%%* % ;% """ %* # ## # ! /!% % | | !!*|";;;%;% ;; ;; ; #### "" %%% | | "[]% ;;;%% %; ! ; %; # =" [[ ! | | = ]! %;;! ;##%% ; # = ! "[ " | | = % %%; *=% %%[ ;#;;## = =" | | %% % !!!!*b !% ; # ## # # # #### "" | | % %% !|%=!% # # ##### # ###### " " | | = %% % *%[%#|[#;;K;################## "" " | | ! % %%%!=!!;! ################### """ " | | = %%" "!%; # ; ########################## ### | | %% !*;"#;#;"############################### | | %% =% & ############################ | | ]% */ " ############################ | | %= ; " " ############################ | | !! " % " ############################ | | ""= [" " ############################ | | ""* =%" "T"" ########################### | | "#% " """ #######?#################### | | "" " "" = " ########################?### | | """" ## "#######+#################?#?######### | | #" " ##############?########## | +----------------------------------------------------+ Best States ------------- Heat Dissipation 75 Energy Generation 59 Energy Capacity 1590 Matter Stores 300 Matter Capacity 600 Sight Range 24 Robot Scan Range 18 Terrain Scan Range 24 Terrain Scan Density 1210 ECM Strength 3 Jamming Range 16 Cloak Strength 4 Additional Mass Support 9 Armor Coverage 525 Propulsion Shielding 90 Weapon Shielding 90 Evasion (%) 80 Targeting Accuracy 48 Melee Accuracy 16 Target Analysis 9 Core Analysis 12 Recoil Reduction 5 Kinecelleration 50 Salvage Targeting 16 Offensive Hacking 34 Defensive Hacking 39 Item Schematics ----------------- None Robot Schematics ------------------ S-43 Plague | -2/Research | Hacked Fabricated ------------ Adv. Sensor Array | x2 | -5/Factory Lrn. Terrain Scanner | x2 | -4/Factory Adv. Hacking Suite | x1 | -4/Factory Mni. Fusion Reactor | x1 | -4/Factory | Preloaded Impulse Thruster Array | x1 | -3/Armory Repaired ---------- Imp. Treads | 13% | -8/Materials Lgt. Nuclear Core | 2% | -8/Materials Arm. Treads | 20% | -7/Storage Cld. Nuclear Pulse Thruster | 67% | -5/Factory Alien Tech Used ----------------- Integrated Reactor Transdimensional Reconstructor Core Reset Matrix Core Expander Integrated Mediator Subatomic Replicator Phase Redirector Matter Drive Dimensional Node Initializer Achievements -------------- None Challenges ------------ None Game ------ Seed DroneMiningStabilizer Manual? 0 Play Time 08:33:01 Cumulative 43.3 hours Start 2025.08.06 @ 16:32:53 End 2025.08.07 @ 05:18:32 Sessions 2 Manual Loads 0 Difficulty Rogue Special Mode None Game No. 13 Rogue 13 Adventurer 0 Explorer 0 Win Type - Total 1 Types 0/0/1/0/0/0/0/0/0/0 Lore% 46 Gallery% 36 Achievement% 72 Wizard Run 0 Options --------- Layout 2 ASCII 0 Keyboard 1 Movement Vi Keybinds 0 Fullscreen 1 Font 28/SwanstonBold Map View 50x52 Zoom Use 0% Tactical HUD 1 Map Filters NONE Filters NONE Steam 1 RUN: 536db7ed-3efd-4d86-8557-ef2695d65ec9